Workbook

Sheet ESTRUTURA TARIFÁRIA ATUAL
A1: CONDOMÍNIO em BALNEÁRIO CAMBORIÚ (caso real) | DI1: CONDOMÍNIO em FLORIANÓPOLIS (caso real)
C2: =CALCULADORA!B6 -> 0 | D2: ECONOMIAS | DC2: CONSUMO: | DK2: 113 ECONOMIAS | DM2: CONSUMO:
A3: RESIDENCIAL | B3: Consumo Mínimo = | D3: 19.67 | E3: 0 | G3: 1 | I3: 2 | K3: 3 | M3: 4 | O3: 5 | Q3: 6 | S3: 7 | U3: 8 | W3: 9 | Y3: 10 | AA3: 11 | AC3: 12 | AE3: 13 | AG3: 14 | AI3: 15 | AK3: 16 | AM3: 17 | AO3: 18 | AQ3: 19 | AS3: 20 | AU3: 21 | AW3: 22 | AY3: 23 | BA3: 24 | BC3: 25 | BE3: 26 | BG3: 27 | BI3: 28 | BK3: 29 | BM3: 30 | BO3: 31 | BQ3: 32 | BS3: 33 | BU3: 34 | BW3: 35 | BY3: 36 | CA3: 37 | CC3: 38 | CE3: 39 | CG3: 40 | CI3: 41 | CK3: 42 | CM3: 43 | CO3: 44 | CQ3: 45 | CS3: 46 | CU3: 47 | CW3: 48 | CY3: 49 | DA3: 50 | DC3: =CALCULADORA!B4 -> 0 | DD3: m³ | DI3: RESIDENCIAL | DJ3: Consumo Mínimo = 113x | DL3: 46.282 | DM3: 1080 m³
B4: Faixa | D4: Valor/m³ | E4: Consumo na Faixa | F4: Valor total | G4: Consumo na Faixa | H4: Valor total | I4: Consumo na Faixa | J4: Valor total | K4: Consumo na Faixa | L4: Valor total | M4: Consumo na Faixa | N4: Valor total | O4: Consumo na Faixa | P4: Valor total | Q4: Consumo na Faixa | R4: Valor total | S4: Consumo na Faixa | T4: Valor total | U4: Consumo na Faixa | V4: Valor total | W4: Consumo na Faixa | X4: Valor total | Y4: Consumo na Faixa | Z4: Valor total | AA4: Consumo na Faixa | AB4: Valor total | AC4: Consumo na Faixa | AD4: Valor total | AE4: Consumo na Faixa | AF4: Valor total | AG4: Consumo na Faixa | AH4: Valor total | AI4: Consumo na Faixa | AJ4: Valor total | AK4: Consumo na Faixa | AL4: Valor total | AM4: Consumo na Faixa | AN4: Valor total | AO4: Consumo na Faixa | AP4: Valor total | AQ4: Consumo na Faixa | AR4: Valor total | AS4: Consumo na Faixa | AT4: Valor total | AU4: Consumo na Faixa | AV4: Valor total | AW4: Consumo na Faixa | AX4: Valor total | AY4: Consumo na Faixa | AZ4: Valor total | BA4: Consumo na Faixa | BB4: Valor total | BC4: Consumo na Faixa | BD4: Valor total | BE4: Consumo na Faixa | BF4: Valor total | BG4: Consumo na Faixa | BH4: Valor total | BI4: Consumo na Faixa | BJ4: Valor total | BK4: Consumo na Faixa | BL4: Valor total | BM4: Consumo na Faixa | BN4: Valor total | BO4: Consumo na Faixa | BP4: Valor total | BQ4: Consumo na Faixa | BR4: Valor total | BS4: Consumo na Faixa | BT4: Valor total | BU4: Consumo na Faixa | BV4: Valor total | BW4: Consumo na Faixa | BX4: Valor total | BY4: Consumo na Faixa | BZ4: Valor total | CA4: Consumo na Faixa | CB4: Valor total | CC4: Consumo na Faixa | CD4: Valor total | CE4: Consumo na Faixa | CF4: Valor total | CG4: Consumo na Faixa | CH4: Valor total | CI4: Consumo na Faixa | CJ4: Valor total | CK4: Consumo na Faixa | CL4: Valor total | CM4: Consumo na Faixa | CN4: Valor total | CO4: Consumo na Faixa | CP4: Valor total | CQ4: Consumo na Faixa | CR4: Valor total | CS4: Consumo na Faixa | CT4: Valor total | CU4: Consumo na Faixa | CV4: Valor total | CW4: Consumo na Faixa | CX4: Valor total | CY4: Consumo na Faixa | CZ4: Valor total | DA4: Consumo na Faixa | DB4: Valor total | DC4: Consumo na Faixa | DD4: Valor total | DF4: Simulação estrutura tarifária atual. | DJ4: Faixa | DL4: Valor/m³ | DM4: Consumo na Faixa | DN4: Valor total | DQ4: tabela de apoio
B5: 0 | C5: 10 | D5: 1.967 | E5: 0 | F5: =E5*$D$20 -> 0 | G5: 1 | H5: =G5*$D$20 -> 1.967 | I5: 2 | J5: =I5*$D$20 -> 3.934 | K5: 3 | L5: =K5*$D$20 -> 5.901 | M5: 4 | N5: =M5*$D$20 -> 7.868 | O5: 5 | P5: =O5*$D$20 -> 9.835 | Q5: 6 | R5: =Q5*$D$20 -> 11.802 | S5: 7 | T5: =S5*$D$20 -> 13.769 | U5: 8 | V5: =U5*$D$20 -> 15.736 | W5: 9 | X5: =W5*$D$20 -> 17.703 | Y5: 10 | Z5: =Y5*$D$20 -> 19.67 | AA5: 10 | AB5: =AA5*$D$20 -> 19.67 | AC5: 10 | AD5: =AC5*$D$20 -> 19.67 | AE5: 10 | AF5: =AE5*$D$20 -> 19.67 | AG5: 10 | AH5: =AG5*$D$20 -> 19.67 | AI5: 10 | AJ5: =AI5*$D$20 -> 19.67 | AK5: 10 | AL5: =AK5*$D$20 -> 19.67 | AM5: 10 | AN5: =AM5*$D$20 -> 19.67 | AO5: 10 | AP5: =AO5*$D$20 -> 19.67 | AQ5: 10 | AR5: =AQ5*$D$20 -> 19.67 | AS5: 10 | AT5: =AS5*$D$20 -> 19.67 | AU5: 10 | AV5: =AU5*$D$20 -> 19.67 | AW5: 10 | AX5: =AW5*$D$20 -> 19.67 | AY5: 10 | AZ5: =AY5*$D$20 -> 19.67 | BA5: 10 | BB5: =BA5*$D$20 -> 19.67 | BC5: 10 | BD5: =BC5*$D$20 -> 19.67 | BE5: 10 | BF5: =BE5*$D$20 -> 19.67 | BG5: 10 | BH5: =BG5*$D$20 -> 19.67 | BI5: 10 | BJ5: =BI5*$D$20 -> 19.67 | BK5: 10 | BL5: =BK5*$D$20 -> 19.67 | BM5: 10 | BN5: =BM5*$D$20 -> 19.67 | BO5: 10 | BP5: =BO5*$D$20 -> 19.67 | BQ5: 10 | BR5: =BQ5*$D$20 -> 19.67 | BS5: 10 | BT5: =BS5*$D$20 -> 19.67 | BU5: 10 | BV5: =BU5*$D$20 -> 19.67 | BW5: 10 | BX5: =BW5*$D$20 -> 19.67 | BY5: 10 | BZ5: =BY5*$D$20 -> 19.67 | CA5: 10 | CB5: =CA5*$D$20 -> 19.67 | CC5: 10 | CD5: =CC5*$D$20 -> 19.67 | CE5: 10 | CF5: =CE5*$D$20 -> 19.67 | CG5: 10 | CH5: =CG5*$D$20 -> 19.67 | CI5: 10 | CJ5: =CI5*$D$20 -> 19.67 | CK5: 10 | CL5: =CK5*$D$20 -> 19.67 | CM5: 10 | CN5: =CM5*$D$20 -> 19.67 | CO5: 10 | CP5: =CO5*$D$20 -> 19.67 | CQ5: 10 | CR5: =CQ5*$D$20 -> 19.67 | CS5: 10 | CT5: =CS5*$D$20 -> 19.67 | CU5: 10 | CV5: =CU5*$D$20 -> 19.67 | CW5: 10 | CX5: =CW5*$D$20 -> 19.67 | CY5: 10 | CZ5: =CY5*$D$20 -> 19.67 | DA5: 10 | DB5: =DA5*$D$20 -> 19.67 | DC5: =IF((DC3)<=DQ5, DC3,DQ5) -> 0 | DD5: =DC5*$D$5 -> 0 | DJ5: 0 | DK5: 10 | DL5: 4.628 | DM5: =10*113 -> 1130 | DN5: =DM5*$D$5 -> 2222.71 | DQ5: =C5 -> 10 | DR5: consumo faixa 01
B6: 11 | C6: 25 | D6: 3.433 | F6: =E6*$D$21 -> 0 | H6: =G6*$D$21 -> 0 | J6: =I6*$D$21 -> 0 | L6: =K6*$D$21 -> 0 | N6: =M6*$D$21 -> 0 | P6: =O6*$D$21 -> 0 | R6: =Q6*$D$21 -> 0 | T6: =S6*$D$21 -> 0 | V6: =U6*$D$21 -> 0 | X6: =W6*$D$21 -> 0 | Z6: =Y6*$D$21 -> 0 | AA6: 1 | AB6: =AA6*$D$21 -> 3.433 | AC6: 2 | AD6: =AC6*$D$21 -> 6.866 | AE6: 3 | AF6: =AE6*$D$21 -> 10.299 | AG6: 4 | AH6: =AG6*$D$21 -> 13.732 | AI6: 5 | AJ6: =AI6*$D$21 -> 17.165 | AK6: 6 | AL6: =AK6*$D$21 -> 20.598 | AM6: 7 | AN6: =AM6*$D$21 -> 24.031 | AO6: 8 | AP6: =AO6*$D$21 -> 27.464 | AQ6: 9 | AR6: =AQ6*$D$21 -> 30.897 | AS6: 10 | AT6: =AS6*$D$21 -> 34.33 | AU6: 11 | AV6: =AU6*$D$21 -> 37.763 | AW6: 12 | AX6: =AW6*$D$21 -> 41.196 | AY6: 13 | AZ6: =AY6*$D$21 -> 44.629 | BA6: 14 | BB6: =BA6*$D$21 -> 48.062 | BC6: 15 | BD6: =BC6*$D$21 -> 51.495 | BE6: 15 | BF6: =BE6*$D$21 -> 51.495 | BG6: 15 | BH6: =BG6*$D$21 -> 51.495 | BI6: 15 | BJ6: =BI6*$D$21 -> 51.495 | BK6: 15 | BL6: =BK6*$D$21 -> 51.495 | BM6: 15 | BN6: =BM6*$D$21 -> 51.495 | BO6: 15 | BP6: =BO6*$D$21 -> 51.495 | BQ6: 15 | BR6: =BQ6*$D$21 -> 51.495 | BS6: 15 | BT6: =BS6*$D$21 -> 51.495 | BU6: 15 | BV6: =BU6*$D$21 -> 51.495 | BW6: 15 | BX6: =BW6*$D$21 -> 51.495 | BY6: 15 | BZ6: =BY6*$D$21 -> 51.495 | CA6: 15 | CB6: =CA6*$D$21 -> 51.495 | CC6: 15 | CD6: =CC6*$D$21 -> 51.495 | CE6: 15 | CF6: =CE6*$D$21 -> 51.495 | CG6: 15 | CH6: =CG6*$D$21 -> 51.495 | CI6: 15 | CJ6: =CI6*$D$21 -> 51.495 | CK6: 15 | CL6: =CK6*$D$21 -> 51.495 | CM6: 15 | CN6: =CM6*$D$21 -> 51.495 | CO6: 15 | CP6: =CO6*$D$21 -> 51.495 | CQ6: 15 | CR6: =CQ6*$D$21 -> 51.495 | CS6: 15 | CT6: =CS6*$D$21 -> 51.495 | CU6: 15 | CV6: =CU6*$D$21 -> 51.495 | CW6: 15 | CX6: =CW6*$D$21 -> 51.495 | CY6: 15 | CZ6: =CY6*$D$21 -> 51.495 | DA6: 15 | DB6: =DA6*$D$21 -> 51.495 | DC6: =IF($DC$3<$DQ$5,0,IF($DC$3>($DQ$5+$DQ$6),$DQ$6,IF($DQ$5<$DC$3>$DQ$6,$DC$3-$DQ$5))) -> 0 | DD6: =DC6*$D$21 -> 0 | DJ6: 11 | DK6: 25 | DL6: 8.1217 | DN6: =DM6*$D$21 -> 0 | DQ6: 15 | DR6: consumo faixa 02
B7: 26 | C7: 50 | D7: 4.05 | F7: =E7*$D$22 -> 0 | H7: =G7*$D$22 -> 0 | J7: =I7*$D$22 -> 0 | L7: =K7*$D$22 -> 0 | N7: =M7*$D$22 -> 0 | P7: =O7*$D$22 -> 0 | R7: =Q7*$D$22 -> 0 | T7: =S7*$D$22 -> 0 | V7: =U7*$D$22 -> 0 | X7: =W7*$D$22 -> 0 | Z7: =Y7*$D$22 -> 0 | AB7: =AA7*$D$22 -> 0 | AD7: =AC7*$D$22 -> 0 | AF7: =AE7*$D$22 -> 0 | AH7: =AG7*$D$22 -> 0 | AJ7: =AI7*$D$22 -> 0 | AL7: =AK7*$D$22 -> 0 | AN7: =AM7*$D$22 -> 0 | AP7: =AO7*$D$22 -> 0 | AR7: =AQ7*$D$22 -> 0 | AT7: =AS7*$D$22 -> 0 | AV7: =AU7*$D$22 -> 0 | AX7: =AW7*$D$22 -> 0 | AZ7: =AY7*$D$22 -> 0 | BB7: =BA7*$D$22 -> 0 | BD7: =BC7*$D$22 -> 0 | BE7: 1 | BF7: =BE7*$D$22 -> 4.05 | BG7: 2 | BH7: =BG7*$D$22 -> 8.1 | BI7: 3 | BJ7: =BI7*$D$22 -> 12.15 | BK7: 4 | BL7: =BK7*$D$22 -> 16.2 | BM7: 5 | BN7: =BM7*$D$22 -> 20.25 | BO7: 6 | BP7: =BO7*$D$22 -> 24.3 | BQ7: 7 | BR7: =BQ7*$D$22 -> 28.35 | BS7: 8 | BT7: =BS7*$D$22 -> 32.4 | BU7: 9 | BV7: =BU7*$D$22 -> 36.45 | BW7: 10 | BX7: =BW7*$D$22 -> 40.5 | BY7: 11 | BZ7: =BY7*$D$22 -> 44.55 | CA7: 12 | CB7: =CA7*$D$22 -> 48.6 | CC7: 13 | CD7: =CC7*$D$22 -> 52.65 | CE7: 14 | CF7: =CE7*$D$22 -> 56.7 | CG7: 15 | CH7: =CG7*$D$22 -> 60.75 | CI7: 16 | CJ7: =CI7*$D$22 -> 64.8 | CK7: 17 | CL7: =CK7*$D$22 -> 68.85 | CM7: 18 | CN7: =CM7*$D$22 -> 72.9 | CO7: 19 | CP7: =CO7*$D$22 -> 76.95 | CQ7: 20 | CR7: =CQ7*$D$22 -> 81 | CS7: 21 | CT7: =CS7*$D$22 -> 85.05 | CU7: 22 | CV7: =CU7*$D$22 -> 89.1 | CW7: 23 | CX7: =CW7*$D$22 -> 93.15 | CY7: 24 | CZ7: =CY7*$D$22 -> 97.2 | DA7: 25 | DB7: =DA7*$D$22 -> 101.25 | DC7: =IF($DC$3<35,0,IF($DC$3<=$DQ$5,0,IF($DC$3>($DQ$5+$DQ$6+DQ7),DQ7,IF($DC$3>$DQ$6,$DC$3-DQ5-DQ6)))) -> 0 | DD7: =DC7*$D$22 -> 0 | DJ7: 26 | DK7: 50 | DL7: 11.3741 | DN7: =DM7*$D$22 -> 0 | DQ7: 25 | DR7: consumo faixa 03
B8: 51 | C8: 9999 | D8: 4.69 | F8: =E8*$D$23 -> 0 | H8: =G8*$D$23 -> 0 | J8: =I8*$D$23 -> 0 | L8: =K8*$D$23 -> 0 | N8: =M8*$D$23 -> 0 | P8: =O8*$D$23 -> 0 | R8: =Q8*$D$23 -> 0 | T8: =S8*$D$23 -> 0 | V8: =U8*$D$23 -> 0 | X8: =W8*$D$23 -> 0 | Z8: =Y8*$D$23 -> 0 | AB8: =AA8*$D$23 -> 0 | AD8: =AC8*$D$23 -> 0 | AF8: =AE8*$D$23 -> 0 | AH8: =AG8*$D$23 -> 0 | AJ8: =AI8*$D$23 -> 0 | AL8: =AK8*$D$23 -> 0 | AN8: =AM8*$D$23 -> 0 | AP8: =AO8*$D$23 -> 0 | AR8: =AQ8*$D$23 -> 0 | AT8: =AS8*$D$23 -> 0 | AV8: =AU8*$D$23 -> 0 | AX8: =AW8*$D$23 -> 0 | AZ8: =AY8*$D$23 -> 0 | BB8: =BA8*$D$23 -> 0 | BD8: =BC8*$D$23 -> 0 | BF8: =BE8*$D$23 -> 0 | BH8: =BG8*$D$23 -> 0 | BJ8: =BI8*$D$23 -> 0 | BL8: =BK8*$D$23 -> 0 | BN8: =BM8*$D$23 -> 0 | BP8: =BO8*$D$23 -> 0 | BR8: =BQ8*$D$23 -> 0 | BT8: =BS8*$D$23 -> 0 | BV8: =BU8*$D$23 -> 0 | BX8: =BW8*$D$23 -> 0 | BZ8: =BY8*$D$23 -> 0 | CB8: =CA8*$D$23 -> 0 | CD8: =CC8*$D$23 -> 0 | CF8: =CE8*$D$23 -> 0 | CH8: =CG8*$D$23 -> 0 | CJ8: =CI8*$D$23 -> 0 | CL8: =CK8*$D$23 -> 0 | CN8: =CM8*$D$23 -> 0 | CP8: =CO8*$D$23 -> 0 | CR8: =CQ8*$D$23 -> 0 | CT8: =CS8*$D$23 -> 0 | CV8: =CU8*$D$23 -> 0 | CX8: =CW8*$D$23 -> 0 | CZ8: =CY8*$D$23 -> 0 | DB8: =DA8*$D$23 -> 0 | DC8: =IF($DQ$8>0,$DQ$8) -> FALSE | DD8: =DC8*$D$23 -> 0 | DJ8: 51 | DK8: 9999 | DL8: 13.6197 | DN8: =DM8*$D$23 -> 0 | DQ8: =IF((DC3-DQ5-DQ6-DQ7)<=0,0,IF((DC3-DQ5-DQ6-DQ7)>0,(DC3-DQ5-DQ6-DQ7))) -> 0 | DR8: consumo acima da faixa 03
B9: SUBTOTAL | F9: =SUM(F5:F8) -> 0 | H9: =SUM(H5:H8) -> 1.967 | J9: =SUM(J5:J8) -> 3.934 | L9: =SUM(L5:L8) -> 5.901 | N9: =SUM(N5:N8) -> 7.868 | P9: =SUM(P5:P8) -> 9.835 | R9: =SUM(R5:R8) -> 11.802 | T9: =SUM(T5:T8) -> 13.769 | V9: =SUM(V5:V8) -> 15.736 | X9: =SUM(X5:X8) -> 17.703 | Z9: =SUM(Z5:Z8) -> 19.67 | AB9: =SUM(AB5:AB8) -> 23.103 | AD9: =SUM(AD5:AD8) -> 26.536 | AF9: =SUM(AF5:AF8) -> 29.969 | AH9: =SUM(AH5:AH8) -> 33.402 | AJ9: =SUM(AJ5:AJ8) -> 36.835 | AL9: =SUM(AL5:AL8) -> 40.268 | AN9: =SUM(AN5:AN8) -> 43.701 | AP9: =SUM(AP5:AP8) -> 47.134 | AR9: =SUM(AR5:AR8) -> 50.567 | AT9: =SUM(AT5:AT8) -> 54 | AV9: =SUM(AV5:AV8) -> 57.433 | AX9: =SUM(AX5:AX8) -> 60.866 | AZ9: =SUM(AZ5:AZ8) -> 64.299 | BB9: =SUM(BB5:BB8) -> 67.732 | BD9: =SUM(BD5:BD8) -> 71.165 | BF9: =SUM(BF5:BF8) -> 75.215 | BH9: =SUM(BH5:BH8) -> 79.265 | BJ9: =SUM(BJ5:BJ8) -> 83.315 | BL9: =SUM(BL5:BL8) -> 87.365 | BN9: =SUM(BN5:BN8) -> 91.415 | BP9: =SUM(BP5:BP8) -> 95.465 | BR9: =SUM(BR5:BR8) -> 99.515 | BT9: =SUM(BT5:BT8) -> 103.565 | BV9: =SUM(BV5:BV8) -> 107.615 | BX9: =SUM(BX5:BX8) -> 111.665 | BZ9: =SUM(BZ5:BZ8) -> 115.715 | CB9: =SUM(CB5:CB8) -> 119.765 | CD9: =SUM(CD5:CD8) -> 123.815 | CF9: =SUM(CF5:CF8) -> 127.865 | CH9: =SUM(CH5:CH8) -> 131.915 | CJ9: =SUM(CJ5:CJ8) -> 135.965 | CL9: =SUM(CL5:CL8) -> 140.015 | CN9: =SUM(CN5:CN8) -> 144.065 | CP9: =SUM(CP5:CP8) -> 148.115 | CR9: =SUM(CR5:CR8) -> 152.165 | CT9: =SUM(CT5:CT8) -> 156.215 | CV9: =SUM(CV5:CV8) -> 160.265 | CX9: =SUM(CX5:CX8) -> 164.315 | CZ9: =SUM(CZ5:CZ8) -> 168.365 | DB9: =SUM(DB5:DB8) -> 172.415 | DD9: =SUM(DD5:DD8) -> 0 | DJ9: SUBTOTAL | DN9: =SUM(DN5:DN8) -> 2222.71
B10: TOTAL | F10: =IF((F9<=$D$18),$D$18,F9) -> 19.67 | H10: =IF((H9<=$D$18),$D$18,H9) -> 19.67 | J10: =IF((J9<=$D$18),$D$18,J9) -> 19.67 | L10: =IF((L9<=$D$18),$D$18,L9) -> 19.67 | N10: =IF((N9<=$D$18),$D$18,N9) -> 19.67 | P10: =IF((P9<=$D$18),$D$18,P9) -> 19.67 | R10: =IF((R9<=$D$18),$D$18,R9) -> 19.67 | T10: =IF((T9<=$D$18),$D$18,T9) -> 19.67 | V10: =IF((V9<=$D$18),$D$18,V9) -> 19.67 | X10: =IF((X9<=$D$18),$D$18,X9) -> 19.67 | Z10: =IF((Z9<=$D$18),$D$18,Z9) -> 19.67 | AB10: =IF((AB9<=$D$18),$D$18,AB9) -> 23.103 | AD10: =IF((AD9<=$D$18),$D$18,AD9) -> 26.536 | AF10: =IF((AF9<=$D$18),$D$18,AF9) -> 29.969 | AH10: =IF((AH9<=$D$18),$D$18,AH9) -> 33.402 | AJ10: =IF((AJ9<=$D$18),$D$18,AJ9) -> 36.835 | AL10: =IF((AL9<=$D$18),$D$18,AL9) -> 40.268 | AN10: =IF((AN9<=$D$18),$D$18,AN9) -> 43.701 | AP10: =IF((AP9<=$D$18),$D$18,AP9) -> 47.134 | AR10: =IF((AR9<=$D$18),$D$18,AR9) -> 50.567 | AT10: =IF((AT9<=$D$18),$D$18,AT9) -> 54 | AV10: =IF((AV9<=$D$18),$D$18,AV9) -> 57.433 | AX10: =IF((AX9<=$D$18),$D$18,AX9) -> 60.866 | AZ10: =IF((AZ9<=$D$18),$D$18,AZ9) -> 64.299 | BB10: =IF((BB9<=$D$18),$D$18,BB9) -> 67.732 | BD10: =IF((BD9<=$D$18),$D$18,BD9) -> 71.165 | BF10: =IF((BF9<=$D$18),$D$18,BF9) -> 75.215 | BH10: =IF((BH9<=$D$18),$D$18,BH9) -> 79.265 | BJ10: =IF((BJ9<=$D$18),$D$18,BJ9) -> 83.315 | BL10: =IF((BL9<=$D$18),$D$18,BL9) -> 87.365 | BN10: =IF((BN9<=$D$18),$D$18,BN9) -> 91.415 | BP10: =IF((BP9<=$D$18),$D$18,BP9) -> 95.465 | BR10: =IF((BR9<=$D$18),$D$18,BR9) -> 99.515 | BT10: =IF((BT9<=$D$18),$D$18,BT9) -> 103.565 | BV10: =IF((BV9<=$D$18),$D$18,BV9) -> 107.615 | BX10: =IF((BX9<=$D$18),$D$18,BX9) -> 111.665 | BZ10: =IF((BZ9<=$D$18),$D$18,BZ9) -> 115.715 | CB10: =IF((CB9<=$D$18),$D$18,CB9) -> 119.765 | CD10: =IF((CD9<=$D$18),$D$18,CD9) -> 123.815 | CF10: =IF((CF9<=$D$18),$D$18,CF9) -> 127.865 | CH10: =IF((CH9<=$D$18),$D$18,CH9) -> 131.915 | CJ10: =IF((CJ9<=$D$18),$D$18,CJ9) -> 135.965 | CL10: =IF((CL9<=$D$18),$D$18,CL9) -> 140.015 | CN10: =IF((CN9<=$D$18),$D$18,CN9) -> 144.065 | CP10: =IF((CP9<=$D$18),$D$18,CP9) -> 148.115 | CR10: =IF((CR9<=$D$18),$D$18,CR9) -> 152.165 | CT10: =IF((CT9<=$D$18),$D$18,CT9) -> 156.215 | CV10: =IF((CV9<=$D$18),$D$18,CV9) -> 160.265 | CX10: =IF((CX9<=$D$18),$D$18,CX9) -> 164.315 | CZ10: =IF((CZ9<=$D$18),$D$18,CZ9) -> 168.365 | DB10: =IF((DB9<=$D$18),$D$18,DB9) -> 172.415 | DD10: =IF(C2=0,0,IF((DD9<=$D$3),$D$3,IF(DD9>D3,DD9))) -> 0 | DJ10: TOTAL | DN10: =IF((DN9<=$D$18),$D$18,DN9) -> 2222.71
B11: FATURAMENTO DE ÁGUA | F11: =F10 -> 19.67 | H11: =H10 -> 19.67 | J11: =J10 -> 19.67 | L11: =L10 -> 19.67 | N11: =N10 -> 19.67 | P11: =P10 -> 19.67 | R11: =R10 -> 19.67 | T11: =T10 -> 19.67 | V11: =V10 -> 19.67 | X11: =X10 -> 19.67 | Z11: =Z10 -> 19.67 | AB11: =AB10 -> 23.103 | AD11: =AD10 -> 26.536 | AF11: =AF10 -> 29.969 | AH11: =AH10 -> 33.402 | AJ11: =AJ10 -> 36.835 | AL11: =AL10 -> 40.268 | AN11: =AN10 -> 43.701 | AP11: =AP10 -> 47.134 | AR11: =AR10 -> 50.567 | AT11: =AT10 -> 54 | AV11: =AV10 -> 57.433 | AX11: =AX10 -> 60.866 | AZ11: =AZ10 -> 64.299 | BB11: =BB10 -> 67.732 | BD11: =BD10 -> 71.165 | BF11: =BF10 -> 75.215 | BH11: =BH10 -> 79.265 | BJ11: =BJ10 -> 83.315 | BL11: =BL10 -> 87.365 | BN11: =BN10 -> 91.415 | BP11: =BP10 -> 95.465 | BR11: =BR10 -> 99.515 | BT11: =BT10 -> 103.565 | BV11: =BV10 -> 107.615 | BX11: =BX10 -> 111.665 | BZ11: =BZ10 -> 115.715 | CB11: =CB10 -> 119.765 | CD11: =CD10 -> 123.815 | CF11: =CF10 -> 127.865 | CH11: =CH10 -> 131.915 | CJ11: =CJ10 -> 135.965 | CL11: =CL10 -> 140.015 | CN11: =CN10 -> 144.065 | CP11: =CP10 -> 148.115 | CR11: =CR10 -> 152.165 | CT11: =CT10 -> 156.215 | CV11: =CV10 -> 160.265 | CX11: =CX10 -> 164.315 | CZ11: =CZ10 -> 168.365 | DB11: =DB10 -> 172.415 | DD11: =DD10 -> 0 | DJ11: FATURAMENTO DE ÁGUA | DN11: =DN10 -> 2222.71
B12: FATURAMENTO ESGOTO 100% | F12: =F11 -> 19.67 | H12: =H11 -> 19.67 | J12: =J11 -> 19.67 | L12: =L11 -> 19.67 | N12: =N11 -> 19.67 | P12: =P11 -> 19.67 | R12: =R11 -> 19.67 | T12: =T11 -> 19.67 | V12: 19.67 | X12: 19.67 | Z12: 19.67 | AB12: 23.103 | AD12: 26.536 | AF12: 29.969 | AH12: =AH11 -> 33.402 | AJ12: =AJ11 -> 36.835 | AL12: =AL11 -> 40.268 | AN12: =AN11 -> 43.701 | AP12: 47.134 | AR12: 50.567 | AT12: =AT11 -> 54 | AV12: =AV11 -> 57.433 | AX12: =AX11 -> 60.866 | AZ12: =AZ11 -> 64.299 | BB12: 67.732 | BD12: 71.165 | BF12: =BF11 -> 75.215 | BH12: =BH11 -> 79.265 | BJ12: =BJ11 -> 83.315 | BL12: =BL11 -> 87.365 | BN12: 91.415 | BP12: 95.465 | BR12: =BR11 -> 99.515 | BT12: =BT11 -> 103.565 | BV12: =BV11 -> 107.615 | BX12: =BX11 -> 111.665 | BZ12: 115.715 | CB12: 119.765 | CD12: =CD11 -> 123.815 | CF12: =CF11 -> 127.865 | CH12: =CH11 -> 131.915 | CJ12: =CJ11 -> 135.965 | CL12: 140.015 | CN12: 144.065 | CP12: =CP11 -> 148.115 | CR12: =CR11 -> 152.165 | CT12: =CT11 -> 156.215 | CV12: =CV11 -> 160.265 | CX12: 164.315 | CZ12: 168.365 | DB12: =DB11 -> 172.415 | DD12: =DD11*0.8 -> 0 | DJ12: FATURAMENTO ESGOTO 100% | DN12: 2222.71
B13: VALOR TOTAL DA FATURA | F13: =F11+F12 -> 39.34 | H13: =H11+H12 -> 39.34 | J13: =J11+J12 -> 39.34 | L13: =L11+L12 -> 39.34 | N13: =N11+N12 -> 39.34 | P13: =P11+P12 -> 39.34 | R13: =R11+R12 -> 39.34 | T13: =T11+T12 -> 39.34 | V13: =V11+V12 -> 39.34 | X13: =X11+X12 -> 39.34 | Z13: =Z11+Z12 -> 39.34 | AB13: =AB11+AB12 -> 46.206 | AD13: =AD11+AD12 -> 53.072 | AF13: =AF11+AF12 -> 59.938 | AH13: =AH11+AH12 -> 66.804 | AJ13: =AJ11+AJ12 -> 73.67 | AL13: =AL11+AL12 -> 80.536 | AN13: =AN11+AN12 -> 87.402 | AP13: =AP11+AP12 -> 94.268 | AR13: =AR11+AR12 -> 101.134 | AT13: =AT11+AT12 -> 108 | AV13: =AV11+AV12 -> 114.866 | AX13: =AX11+AX12 -> 121.732 | AZ13: =AZ11+AZ12 -> 128.598 | BB13: =BB11+BB12 -> 135.464 | BD13: =BD11+BD12 -> 142.33 | BF13: =BF11+BF12 -> 150.43 | BH13: =BH11+BH12 -> 158.53 | BJ13: =BJ11+BJ12 -> 166.63 | BL13: =BL11+BL12 -> 174.73 | BN13: =BN11+BN12 -> 182.83 | BP13: =BP11+BP12 -> 190.93 | BR13: =BR11+BR12 -> 199.03 | BT13: =BT11+BT12 -> 207.13 | BV13: =BV11+BV12 -> 215.23 | BX13: =BX11+BX12 -> 223.33 | BZ13: =BZ11+BZ12 -> 231.43 | CB13: =CB11+CB12 -> 239.53 | CD13: =CD11+CD12 -> 247.63 | CF13: =CF11+CF12 -> 255.73 | CH13: =CH11+CH12 -> 263.83 | CJ13: =CJ11+CJ12 -> 271.93 | CL13: =CL11+CL12 -> 280.03 | CN13: =CN11+CN12 -> 288.13 | CP13: =CP11+CP12 -> 296.23 | CR13: =CR11+CR12 -> 304.33 | CT13: =CT11+CT12 -> 312.43 | CV13: =CV11+CV12 -> 320.53 | CX13: =CX11+CX12 -> 328.63 | CZ13: =CZ11+CZ12 -> 336.73 | DB13: =DB11+DB12 -> 344.83 | DD13: =DD11+DD12 -> 0 | DJ13: VALOR TOTAL DA FATURA | DN13: =DN11+DN12 -> 4445.42
A16: CONDOMÍNIO em BALNEÁRIO CAMBORIÚ (caso real)
C17: =CALCULADORA!B6 -> 0 | D17: ECONOMIA | DC17: CONSUMO: | DF17: Simulação que considera o condomínio uma única unidade. | DQ17: tabela de apoio
A18: RESIDENCIAL | B18: Consumo Mínimo | D18: 19.67 | E18: 0 | G18: 1 | I18: 2 | K18: 3 | M18: 4 | O18: 5 | Q18: 6 | S18: 7 | U18: 8 | W18: 9 | Y18: 10 | AA18: 11 | AC18: 12 | AE18: 13 | AG18: 14 | AI18: 15 | AK18: 16 | AM18: 17 | AO18: 18 | AQ18: 19 | AS18: 20 | AU18: 21 | AW18: 22 | AY18: 23 | BA18: 24 | BC18: 25 | BE18: 26 | BG18: 27 | BI18: 28 | BK18: 29 | BM18: 30 | BO18: 31 | BQ18: 32 | BS18: 33 | BU18: 34 | BW18: 35 | BY18: 36 | CA18: 37 | CC18: 38 | CE18: 39 | CG18: 40 | CI18: 41 | CK18: 42 | CM18: 43 | CO18: 44 | CQ18: 45 | CS18: 46 | CU18: 47 | CW18: 48 | CY18: 49 | DA18: 50 | DC18: =CALCULADORA!B4 -> 0 | DD18: m³ | DQ18: =DC18-DC20 -> 0 | DR18: consumo menos faixa 01
B19: Faixa | D19: Valor/m³ | E19: Consumo na Faixa | F19: Valor total | G19: Consumo na Faixa | H19: Valor total | I19: Consumo na Faixa | J19: Valor total | K19: Consumo na Faixa | L19: Valor total | M19: Consumo na Faixa | N19: Valor total | O19: Consumo na Faixa | P19: Valor total | Q19: Consumo na Faixa | R19: Valor total | S19: Consumo na Faixa | T19: Valor total | U19: Consumo na Faixa | V19: Valor total | W19: Consumo na Faixa | X19: Valor total | Y19: Consumo na Faixa | Z19: Valor total | AA19: Consumo na Faixa | AB19: Valor total | AC19: Consumo na Faixa | AD19: Valor total | AE19: Consumo na Faixa | AF19: Valor total | AG19: Consumo na Faixa | AH19: Valor total | AI19: Consumo na Faixa | AJ19: Valor total | AK19: Consumo na Faixa | AL19: Valor total | AM19: Consumo na Faixa | AN19: Valor total | AO19: Consumo na Faixa | AP19: Valor total | AQ19: Consumo na Faixa | AR19: Valor total | AS19: Consumo na Faixa | AT19: Valor total | AU19: Consumo na Faixa | AV19: Valor total | AW19: Consumo na Faixa | AX19: Valor total | AY19: Consumo na Faixa | AZ19: Valor total | BA19: Consumo na Faixa | BB19: Valor total | BC19: Consumo na Faixa | BD19: Valor total | BE19: Consumo na Faixa | BF19: Valor total | BG19: Consumo na Faixa | BH19: Valor total | BI19: Consumo na Faixa | BJ19: Valor total | BK19: Consumo na Faixa | BL19: Valor total | BM19: Consumo na Faixa | BN19: Valor total | BO19: Consumo na Faixa | BP19: Valor total | BQ19: Consumo na Faixa | BR19: Valor total | BS19: Consumo na Faixa | BT19: Valor total | BU19: Consumo na Faixa | BV19: Valor total | BW19: Consumo na Faixa | BX19: Valor total | BY19: Consumo na Faixa | BZ19: Valor total | CA19: Consumo na Faixa | CB19: Valor total | CC19: Consumo na Faixa | CD19: Valor total | CE19: Consumo na Faixa | CF19: Valor total | CG19: Consumo na Faixa | CH19: Valor total | CI19: Consumo na Faixa | CJ19: Valor total | CK19: Consumo na Faixa | CL19: Valor total | CM19: Consumo na Faixa | CN19: Valor total | CO19: Consumo na Faixa | CP19: Valor total | CQ19: Consumo na Faixa | CR19: Valor total | CS19: Consumo na Faixa | CT19: Valor total | CU19: Consumo na Faixa | CV19: Valor total | CW19: Consumo na Faixa | CX19: Valor total | CY19: Consumo na Faixa | CZ19: Valor total | DA19: Consumo na Faixa | DB19: Valor total | DC19: Consumo na Faixa | DD19: Valor total | DQ19: =DC18-DC20-DC21 -> 0 | DR19: consumo menos faixa 01 e 02
B20: 0 | C20: 10 | D20: 1.967 | E20: 0 | F20: =E20*$D$20 -> 0 | G20: 1 | H20: =G20*$D$20 -> 1.967 | I20: 2 | J20: =I20*$D$20 -> 3.934 | K20: 3 | L20: =K20*$D$20 -> 5.901 | M20: 4 | N20: =M20*$D$20 -> 7.868 | O20: 5 | P20: =O20*$D$20 -> 9.835 | Q20: 6 | R20: =Q20*$D$20 -> 11.802 | S20: 7 | T20: =S20*$D$20 -> 13.769 | U20: 8 | V20: =U20*$D$20 -> 15.736 | W20: 9 | X20: =W20*$D$20 -> 17.703 | Y20: 10 | Z20: =Y20*$D$20 -> 19.67 | AA20: 10 | AB20: =AA20*$D$20 -> 19.67 | AC20: 10 | AD20: =AC20*$D$20 -> 19.67 | AE20: 10 | AF20: =AE20*$D$20 -> 19.67 | AG20: 10 | AH20: =AG20*$D$20 -> 19.67 | AI20: 10 | AJ20: =AI20*$D$20 -> 19.67 | AK20: 10 | AL20: =AK20*$D$20 -> 19.67 | AM20: 10 | AN20: =AM20*$D$20 -> 19.67 | AO20: 10 | AP20: =AO20*$D$20 -> 19.67 | AQ20: 10 | AR20: =AQ20*$D$20 -> 19.67 | AS20: 10 | AT20: =AS20*$D$20 -> 19.67 | AU20: 10 | AV20: =AU20*$D$20 -> 19.67 | AW20: 10 | AX20: =AW20*$D$20 -> 19.67 | AY20: 10 | AZ20: =AY20*$D$20 -> 19.67 | BA20: 10 | BB20: =BA20*$D$20 -> 19.67 | BC20: 10 | BD20: =BC20*$D$20 -> 19.67 | BE20: 10 | BF20: =BE20*$D$20 -> 19.67 | BG20: 10 | BH20: =BG20*$D$20 -> 19.67 | BI20: 10 | BJ20: =BI20*$D$20 -> 19.67 | BK20: 10 | BL20: =BK20*$D$20 -> 19.67 | BM20: 10 | BN20: =BM20*$D$20 -> 19.67 | BO20: 10 | BP20: =BO20*$D$20 -> 19.67 | BQ20: 10 | BR20: =BQ20*$D$20 -> 19.67 | BS20: 10 | BT20: =BS20*$D$20 -> 19.67 | BU20: 10 | BV20: =BU20*$D$20 -> 19.67 | BW20: 10 | BX20: =BW20*$D$20 -> 19.67 | BY20: 10 | BZ20: =BY20*$D$20 -> 19.67 | CA20: 10 | CB20: =CA20*$D$20 -> 19.67 | CC20: 10 | CD20: =CC20*$D$20 -> 19.67 | CE20: 10 | CF20: =CE20*$D$20 -> 19.67 | CG20: 10 | CH20: =CG20*$D$20 -> 19.67 | CI20: 10 | CJ20: =CI20*$D$20 -> 19.67 | CK20: 10 | CL20: =CK20*$D$20 -> 19.67 | CM20: 10 | CN20: =CM20*$D$20 -> 19.67 | CO20: 10 | CP20: =CO20*$D$20 -> 19.67 | CQ20: 10 | CR20: =CQ20*$D$20 -> 19.67 | CS20: 10 | CT20: =CS20*$D$20 -> 19.67 | CU20: 10 | CV20: =CU20*$D$20 -> 19.67 | CW20: 10 | CX20: =CW20*$D$20 -> 19.67 | CY20: 10 | CZ20: =CY20*$D$20 -> 19.67 | DA20: 10 | DB20: =DA20*$D$20 -> 19.67 | DC20: =IF((DC18)<=10, DC18, 10) -> 0 | DD20: =DC20*$D$20 -> 0 | DQ20: =DC18-DC22-DC21-DC20 -> 0 | DR20: consumo-faixa 01, 02 e 03
B21: 11 | C21: 25 | D21: 3.433 | F21: =E21*$D$21 -> 0 | H21: =G21*$D$21 -> 0 | J21: =I21*$D$21 -> 0 | L21: =K21*$D$21 -> 0 | N21: =M21*$D$21 -> 0 | P21: =O21*$D$21 -> 0 | R21: =Q21*$D$21 -> 0 | T21: =S21*$D$21 -> 0 | V21: =U21*$D$21 -> 0 | X21: =W21*$D$21 -> 0 | Z21: =Y21*$D$21 -> 0 | AA21: 1 | AB21: =AA21*$D$21 -> 3.433 | AC21: 2 | AD21: =AC21*$D$21 -> 6.866 | AE21: 3 | AF21: =AE21*$D$21 -> 10.299 | AG21: 4 | AH21: =AG21*$D$21 -> 13.732 | AI21: 5 | AJ21: =AI21*$D$21 -> 17.165 | AK21: 6 | AL21: =AK21*$D$21 -> 20.598 | AM21: 7 | AN21: =AM21*$D$21 -> 24.031 | AO21: 8 | AP21: =AO21*$D$21 -> 27.464 | AQ21: 9 | AR21: =AQ21*$D$21 -> 30.897 | AS21: 10 | AT21: =AS21*$D$21 -> 34.33 | AU21: 11 | AV21: =AU21*$D$21 -> 37.763 | AW21: 12 | AX21: =AW21*$D$21 -> 41.196 | AY21: 13 | AZ21: =AY21*$D$21 -> 44.629 | BA21: 14 | BB21: =BA21*$D$21 -> 48.062 | BC21: 15 | BD21: =BC21*$D$21 -> 51.495 | BE21: 15 | BF21: =BE21*$D$21 -> 51.495 | BG21: 15 | BH21: =BG21*$D$21 -> 51.495 | BI21: 15 | BJ21: =BI21*$D$21 -> 51.495 | BK21: 15 | BL21: =BK21*$D$21 -> 51.495 | BM21: 15 | BN21: =BM21*$D$21 -> 51.495 | BO21: 15 | BP21: =BO21*$D$21 -> 51.495 | BQ21: 15 | BR21: =BQ21*$D$21 -> 51.495 | BS21: 15 | BT21: =BS21*$D$21 -> 51.495 | BU21: 15 | BV21: =BU21*$D$21 -> 51.495 | BW21: 15 | BX21: =BW21*$D$21 -> 51.495 | BY21: 15 | BZ21: =BY21*$D$21 -> 51.495 | CA21: 15 | CB21: =CA21*$D$21 -> 51.495 | CC21: 15 | CD21: =CC21*$D$21 -> 51.495 | CE21: 15 | CF21: =CE21*$D$21 -> 51.495 | CG21: 15 | CH21: =CG21*$D$21 -> 51.495 | CI21: 15 | CJ21: =CI21*$D$21 -> 51.495 | CK21: 15 | CL21: =CK21*$D$21 -> 51.495 | CM21: 15 | CN21: =CM21*$D$21 -> 51.495 | CO21: 15 | CP21: =CO21*$D$21 -> 51.495 | CQ21: 15 | CR21: =CQ21*$D$21 -> 51.495 | CS21: 15 | CT21: =CS21*$D$21 -> 51.495 | CU21: 15 | CV21: =CU21*$D$21 -> 51.495 | CW21: 15 | CX21: =CW21*$D$21 -> 51.495 | CY21: 15 | CZ21: =CY21*$D$21 -> 51.495 | DA21: 15 | DB21: =DA21*$D$21 -> 51.495 | DC21: =IF($DC$18<10,0,IF($DQ$18>15,15,IF(15<$DQ$18>10,$DQ$18))) -> 0 | DD21: =DC21*$D$21 -> 0 | DR21: consumo acima da faixa 03
B22: 26 | C22: 50 | D22: 4.05 | F22: =E22*$D$22 -> 0 | H22: =G22*$D$22 -> 0 | J22: =I22*$D$22 -> 0 | L22: =K22*$D$22 -> 0 | N22: =M22*$D$22 -> 0 | P22: =O22*$D$22 -> 0 | R22: =Q22*$D$22 -> 0 | T22: =S22*$D$22 -> 0 | V22: =U22*$D$22 -> 0 | X22: =W22*$D$22 -> 0 | Z22: =Y22*$D$22 -> 0 | AB22: =AA22*$D$22 -> 0 | AD22: =AC22*$D$22 -> 0 | AF22: =AE22*$D$22 -> 0 | AH22: =AG22*$D$22 -> 0 | AJ22: =AI22*$D$22 -> 0 | AL22: =AK22*$D$22 -> 0 | AN22: =AM22*$D$22 -> 0 | AP22: =AO22*$D$22 -> 0 | AR22: =AQ22*$D$22 -> 0 | AT22: =AS22*$D$22 -> 0 | AV22: =AU22*$D$22 -> 0 | AX22: =AW22*$D$22 -> 0 | AZ22: =AY22*$D$22 -> 0 | BB22: =BA22*$D$22 -> 0 | BD22: =BC22*$D$22 -> 0 | BE22: 1 | BF22: =BE22*$D$22 -> 4.05 | BG22: 2 | BH22: =BG22*$D$22 -> 8.1 | BI22: 3 | BJ22: =BI22*$D$22 -> 12.15 | BK22: 4 | BL22: =BK22*$D$22 -> 16.2 | BM22: 5 | BN22: =BM22*$D$22 -> 20.25 | BO22: 6 | BP22: =BO22*$D$22 -> 24.3 | BQ22: 7 | BR22: =BQ22*$D$22 -> 28.35 | BS22: 8 | BT22: =BS22*$D$22 -> 32.4 | BU22: 9 | BV22: =BU22*$D$22 -> 36.45 | BW22: 10 | BX22: =BW22*$D$22 -> 40.5 | BY22: 11 | BZ22: =BY22*$D$22 -> 44.55 | CA22: 12 | CB22: =CA22*$D$22 -> 48.6 | CC22: 13 | CD22: =CC22*$D$22 -> 52.65 | CE22: 14 | CF22: =CE22*$D$22 -> 56.7 | CG22: 15 | CH22: =CG22*$D$22 -> 60.75 | CI22: 16 | CJ22: =CI22*$D$22 -> 64.8 | CK22: 17 | CL22: =CK22*$D$22 -> 68.85 | CM22: 18 | CN22: =CM22*$D$22 -> 72.9 | CO22: 19 | CP22: =CO22*$D$22 -> 76.95 | CQ22: 20 | CR22: =CQ22*$D$22 -> 81 | CS22: 21 | CT22: =CS22*$D$22 -> 85.05 | CU22: 22 | CV22: =CU22*$D$22 -> 89.1 | CW22: 23 | CX22: =CW22*$D$22 -> 93.15 | CY22: 24 | CZ22: =CY22*$D$22 -> 97.2 | DA22: 25 | DB22: =DA22*$D$22 -> 101.25 | DC22: =IF($DC$18<10,0,IF($DQ$19>25,25,IF(25<$DQ$19>15,$DQ$19))) -> 0 | DD22: =DC22*$D$22 -> 0
B23: 51 | C23: 9999 | D23: 4.69 | F23: =E23*$D$23 -> 0 | H23: =G23*$D$23 -> 0 | J23: =I23*$D$23 -> 0 | L23: =K23*$D$23 -> 0 | N23: =M23*$D$23 -> 0 | P23: =O23*$D$23 -> 0 | R23: =Q23*$D$23 -> 0 | T23: =S23*$D$23 -> 0 | V23: =U23*$D$23 -> 0 | X23: =W23*$D$23 -> 0 | Z23: =Y23*$D$23 -> 0 | AB23: =AA23*$D$23 -> 0 | AD23: =AC23*$D$23 -> 0 | AF23: =AE23*$D$23 -> 0 | AH23: =AG23*$D$23 -> 0 | AJ23: =AI23*$D$23 -> 0 | AL23: =AK23*$D$23 -> 0 | AN23: =AM23*$D$23 -> 0 | AP23: =AO23*$D$23 -> 0 | AR23: =AQ23*$D$23 -> 0 | AT23: =AS23*$D$23 -> 0 | AV23: =AU23*$D$23 -> 0 | AX23: =AW23*$D$23 -> 0 | AZ23: =AY23*$D$23 -> 0 | BB23: =BA23*$D$23 -> 0 | BD23: =BC23*$D$23 -> 0 | BF23: =BE23*$D$23 -> 0 | BH23: =BG23*$D$23 -> 0 | BJ23: =BI23*$D$23 -> 0 | BL23: =BK23*$D$23 -> 0 | BN23: =BM23*$D$23 -> 0 | BP23: =BO23*$D$23 -> 0 | BR23: =BQ23*$D$23 -> 0 | BT23: =BS23*$D$23 -> 0 | BV23: =BU23*$D$23 -> 0 | BX23: =BW23*$D$23 -> 0 | BZ23: =BY23*$D$23 -> 0 | CB23: =CA23*$D$23 -> 0 | CD23: =CC23*$D$23 -> 0 | CF23: =CE23*$D$23 -> 0 | CH23: =CG23*$D$23 -> 0 | CJ23: =CI23*$D$23 -> 0 | CL23: =CK23*$D$23 -> 0 | CN23: =CM23*$D$23 -> 0 | CP23: =CO23*$D$23 -> 0 | CR23: =CQ23*$D$23 -> 0 | CT23: =CS23*$D$23 -> 0 | CV23: =CU23*$D$23 -> 0 | CX23: =CW23*$D$23 -> 0 | CZ23: =CY23*$D$23 -> 0 | DB23: =DA23*$D$23 -> 0 | DC23: =IF($DQ$20>0,$DQ$20) -> FALSE | DD23: =DC23*$D$23 -> 0
B24: SUBTOTAL | F24: =SUM(F20:F23) -> 0 | H24: =SUM(H20:H23) -> 1.967 | J24: =SUM(J20:J23) -> 3.934 | L24: =SUM(L20:L23) -> 5.901 | N24: =SUM(N20:N23) -> 7.868 | P24: =SUM(P20:P23) -> 9.835 | R24: =SUM(R20:R23) -> 11.802 | T24: =SUM(T20:T23) -> 13.769 | V24: =SUM(V20:V23) -> 15.736 | X24: =SUM(X20:X23) -> 17.703 | Z24: =SUM(Z20:Z23) -> 19.67 | AB24: =SUM(AB20:AB23) -> 23.103 | AD24: =SUM(AD20:AD23) -> 26.536 | AF24: =SUM(AF20:AF23) -> 29.969 | AH24: =SUM(AH20:AH23) -> 33.402 | AJ24: =SUM(AJ20:AJ23) -> 36.835 | AL24: =SUM(AL20:AL23) -> 40.268 | AN24: =SUM(AN20:AN23) -> 43.701 | AP24: =SUM(AP20:AP23) -> 47.134 | AR24: =SUM(AR20:AR23) -> 50.567 | AT24: =SUM(AT20:AT23) -> 54 | AV24: =SUM(AV20:AV23) -> 57.433 | AX24: =SUM(AX20:AX23) -> 60.866 | AZ24: =SUM(AZ20:AZ23) -> 64.299 | BB24: =SUM(BB20:BB23) -> 67.732 | BD24: =SUM(BD20:BD23) -> 71.165 | BF24: =SUM(BF20:BF23) -> 75.215 | BH24: =SUM(BH20:BH23) -> 79.265 | BJ24: =SUM(BJ20:BJ23) -> 83.315 | BL24: =SUM(BL20:BL23) -> 87.365 | BN24: =SUM(BN20:BN23) -> 91.415 | BP24: =SUM(BP20:BP23) -> 95.465 | BR24: =SUM(BR20:BR23) -> 99.515 | BT24: =SUM(BT20:BT23) -> 103.565 | BV24: =SUM(BV20:BV23) -> 107.615 | BX24: =SUM(BX20:BX23) -> 111.665 | BZ24: =SUM(BZ20:BZ23) -> 115.715 | CB24: =SUM(CB20:CB23) -> 119.765 | CD24: =SUM(CD20:CD23) -> 123.815 | CF24: =SUM(CF20:CF23) -> 127.865 | CH24: =SUM(CH20:CH23) -> 131.915 | CJ24: 135.965 | CL24: 140.015 | CN24: 144.065 | CP24: 148.115 | CR24: 152.165 | CT24: 156.215 | CV24: =SUM(CV20:CV23) -> 160.265 | CX24: =SUM(CX20:CX23) -> 164.315 | CZ24: =SUM(CZ20:CZ23) -> 168.365 | DB24: =SUM(DB20:DB23) -> 172.415 | DD24: 0
B25: TOTAL | F25: =IF((F24<=$D$18),$D$18,F24) -> 19.67 | H25: =IF((H24<=$D$18),$D$18,H24) -> 19.67 | J25: =IF((J24<=$D$18),$D$18,J24) -> 19.67 | L25: =IF((L24<=$D$18),$D$18,L24) -> 19.67 | N25: =IF((N24<=$D$18),$D$18,N24) -> 19.67 | P25: =IF((P24<=$D$18),$D$18,P24) -> 19.67 | R25: =IF((R24<=$D$18),$D$18,R24) -> 19.67 | T25: =IF((T24<=$D$18),$D$18,T24) -> 19.67 | V25: =IF((V24<=$D$18),$D$18,V24) -> 19.67 | X25: =IF((X24<=$D$18),$D$18,X24) -> 19.67 | Z25: =IF((Z24<=$D$18),$D$18,Z24) -> 19.67 | AB25: =IF((AB24<=$D$18),$D$18,AB24) -> 23.103 | AD25: =IF((AD24<=$D$18),$D$18,AD24) -> 26.536 | AF25: =IF((AF24<=$D$18),$D$18,AF24) -> 29.969 | AH25: =IF((AH24<=$D$18),$D$18,AH24) -> 33.402 | AJ25: =IF((AJ24<=$D$18),$D$18,AJ24) -> 36.835 | AL25: =IF((AL24<=$D$18),$D$18,AL24) -> 40.268 | AN25: =IF((AN24<=$D$18),$D$18,AN24) -> 43.701 | AP25: =IF((AP24<=$D$18),$D$18,AP24) -> 47.134 | AR25: =IF((AR24<=$D$18),$D$18,AR24) -> 50.567 | AT25: =IF((AT24<=$D$18),$D$18,AT24) -> 54 | AV25: =IF((AV24<=$D$18),$D$18,AV24) -> 57.433 | AX25: =IF((AX24<=$D$18),$D$18,AX24) -> 60.866 | AZ25: =IF((AZ24<=$D$18),$D$18,AZ24) -> 64.299 | BB25: =IF((BB24<=$D$18),$D$18,BB24) -> 67.732 | BD25: =IF((BD24<=$D$18),$D$18,BD24) -> 71.165 | BF25: =IF((BF24<=$D$18),$D$18,BF24) -> 75.215 | BH25: =IF((BH24<=$D$18),$D$18,BH24) -> 79.265 | BJ25: =IF((BJ24<=$D$18),$D$18,BJ24) -> 83.315 | BL25: =IF((BL24<=$D$18),$D$18,BL24) -> 87.365 | BN25: =IF((BN24<=$D$18),$D$18,BN24) -> 91.415 | BP25: =IF((BP24<=$D$18),$D$18,BP24) -> 95.465 | BR25: =IF((BR24<=$D$18),$D$18,BR24) -> 99.515 | BT25: =IF((BT24<=$D$18),$D$18,BT24) -> 103.565 | BV25: =IF((BV24<=$D$18),$D$18,BV24) -> 107.615 | BX25: =IF((BX24<=$D$18),$D$18,BX24) -> 111.665 | BZ25: =IF((BZ24<=$D$18),$D$18,BZ24) -> 115.715 | CB25: =IF((CB24<=$D$18),$D$18,CB24) -> 119.765 | CD25: =IF((CD24<=$D$18),$D$18,CD24) -> 123.815 | CF25: =IF((CF24<=$D$18),$D$18,CF24) -> 127.865 | CH25: =IF((CH24<=$D$18),$D$18,CH24) -> 131.915 | CJ25: 135.965 | CL25: 140.015 | CN25: 144.065 | CP25: 148.115 | CR25: 152.165 | CT25: 156.215 | CV25: =IF((CV24<=$D$18),$D$18,CV24) -> 160.265 | CX25: =IF((CX24<=$D$18),$D$18,CX24) -> 164.315 | CZ25: =IF((CZ24<=$D$18),$D$18,CZ24) -> 168.365 | DB25: =IF((DB24<=$D$18),$D$18,DB24) -> 172.415 | DD25: =IF(C17=0,0,IF((DD24<=$D$3),$D$3,IF(DD24>D18,DD24))) -> 0
B26: FATURAMENTO DE ÁGUA | F26: =F25 -> 19.67 | H26: =H25 -> 19.67 | J26: =J25 -> 19.67 | L26: =L25 -> 19.67 | N26: =N25 -> 19.67 | P26: =P25 -> 19.67 | R26: =R25 -> 19.67 | T26: =T25 -> 19.67 | V26: =V25 -> 19.67 | X26: =X25 -> 19.67 | Z26: =Z25 -> 19.67 | AB26: =AB25 -> 23.103 | AD26: =AD25 -> 26.536 | AF26: =AF25 -> 29.969 | AH26: =AH25 -> 33.402 | AJ26: =AJ25 -> 36.835 | AL26: =AL25 -> 40.268 | AN26: =AN25 -> 43.701 | AP26: =AP25 -> 47.134 | AR26: =AR25 -> 50.567 | AT26: =AT25 -> 54 | AV26: =AV25 -> 57.433 | AX26: =AX25 -> 60.866 | AZ26: =AZ25 -> 64.299 | BB26: =BB25 -> 67.732 | BD26: =BD25 -> 71.165 | BF26: =BF25 -> 75.215 | BH26: =BH25 -> 79.265 | BJ26: =BJ25 -> 83.315 | BL26: =BL25 -> 87.365 | BN26: =BN25 -> 91.415 | BP26: =BP25 -> 95.465 | BR26: =BR25 -> 99.515 | BT26: =BT25 -> 103.565 | BV26: =BV25 -> 107.615 | BX26: =BX25 -> 111.665 | BZ26: =BZ25 -> 115.715 | CB26: =CB25 -> 119.765 | CD26: =CD25 -> 123.815 | CF26: =CF25 -> 127.865 | CH26: =CH25 -> 131.915 | CJ26: 135.965 | CL26: 140.015 | CN26: 144.065 | CP26: 148.115 | CR26: 152.165 | CT26: 156.215 | CV26: =CV25 -> 160.265 | CX26: =CX25 -> 164.315 | CZ26: =CZ25 -> 168.365 | DB26: =DB25 -> 172.415 | DD26: =DD25 -> 0
B27: FATURAMENTO ESGOTO 100% | F27: =F26 -> 19.67 | H27: =H26 -> 19.67 | J27: =J26 -> 19.67 | L27: =L26 -> 19.67 | N27: =N26 -> 19.67 | P27: =P26 -> 19.67 | R27: =R26 -> 19.67 | T27: =T26 -> 19.67 | V27: 19.67 | X27: 19.67 | Z27: 19.67 | AB27: 23.103 | AD27: 26.536 | AF27: 29.969 | AH27: 33.402 | AJ27: 36.835 | AL27: 40.268 | AN27: 43.701 | AP27: 47.134 | AR27: 50.567 | AT27: 54 | AV27: 57.433 | AX27: 60.866 | AZ27: 64.299 | BB27: 67.732 | BD27: 71.165 | BF27: 75.215 | BH27: 79.265 | BJ27: 83.315 | BL27: 87.365 | BN27: 91.415 | BP27: 95.465 | BR27: 99.515 | BT27: 103.565 | BV27: 107.615 | BX27: 111.665 | BZ27: 115.715 | CB27: 119.765 | CD27: 123.815 | CF27: 127.865 | CH27: 131.915 | CJ27: 135.965 | CL27: =CL26 -> 140.015 | CN27: =CN26 -> 144.065 | CP27: 148.115 | CR27: 152.165 | CT27: 156.215 | CV27: 160.265 | CX27: =CX26 -> 164.315 | CZ27: =CZ26 -> 168.365 | DB27: 172.415 | DD27: =DD26*0.8 -> 0
B28: VALOR TOTAL DA FATURA | F28: =F26+F27 -> 39.34 | H28: =H26+H27 -> 39.34 | J28: =J26+J27 -> 39.34 | L28: =L26+L27 -> 39.34 | N28: =N26+N27 -> 39.34 | P28: =P26+P27 -> 39.34 | R28: =R26+R27 -> 39.34 | T28: =T26+T27 -> 39.34 | V28: =V26+V27 -> 39.34 | X28: =X26+X27 -> 39.34 | Z28: =Z26+Z27 -> 39.34 | AB28: =AB26+AB27 -> 46.206 | AD28: =AD26+AD27 -> 53.072 | AF28: =AF26+AF27 -> 59.938 | AH28: =AH26+AH27 -> 66.804 | AJ28: =AJ26+AJ27 -> 73.67 | AL28: =AL26+AL27 -> 80.536 | AN28: =AN26+AN27 -> 87.402 | AP28: =AP26+AP27 -> 94.268 | AR28: =AR26+AR27 -> 101.134 | AT28: =AT26+AT27 -> 108 | AV28: =AV26+AV27 -> 114.866 | AX28: =AX26+AX27 -> 121.732 | AZ28: =AZ26+AZ27 -> 128.598 | BB28: =BB26+BB27 -> 135.464 | BD28: =BD26+BD27 -> 142.33 | BF28: =BF26+BF27 -> 150.43 | BH28: =BH26+BH27 -> 158.53 | BJ28: =BJ26+BJ27 -> 166.63 | BL28: =BL26+BL27 -> 174.73 | BN28: =BN26+BN27 -> 182.83 | BP28: =BP26+BP27 -> 190.93 | BR28: =BR26+BR27 -> 199.03 | BT28: =BT26+BT27 -> 207.13 | BV28: =BV26+BV27 -> 215.23 | BX28: =BX26+BX27 -> 223.33 | BZ28: =BZ26+BZ27 -> 231.43 | CB28: =CB26+CB27 -> 239.53 | CD28: =CD26+CD27 -> 247.63 | CF28: =CF26+CF27 -> 255.73 | CH28: =CH26+CH27 -> 263.83 | CJ28: 271.93 | CL28: 280.03 | CN28: 288.13 | CP28: 296.23 | CR28: 304.33 | CT28: 312.43 | CV28: =CV26+CV27 -> 320.53 | CX28: =CX26+CX27 -> 328.63 | CZ28: =CZ26+CZ27 -> 336.73 | DB28: =DB26+DB27 -> 344.83 | DD28: =DD26+DD27 -> 0 | DI28: =DD28-DD13 -> 0
A32: CONDOMÍNIO em BALNEÁRIO CAMBORIÚ (caso real)
A33: 1 | B33: ECONOMIA | C33: =CALCULADORA!B6 -> 0 | D33: UNIDADES | DC33: CONSUMO: | DF33: Simulação nova estrutura tarifária
A34: RESIDENCIAL | B34: TFDI com RTP | D34: 28.69 | E34: 0 | G34: 1 | I34: 2 | K34: 3 | M34: 4 | O34: 5 | Q34: 6 | S34: 7 | U34: 8 | W34: 9 | Y34: 10 | AA34: 11 | AC34: 12 | AE34: 13 | AG34: 14 | AI34: 15 | AK34: 16 | AM34: 17 | AO34: 18 | AQ34: 19 | AS34: 20 | AU34: 21 | AW34: 22 | AY34: 23 | BA34: 24 | BC34: 25 | BE34: 26 | BG34: 27 | BI34: 28 | BK34: 29 | BM34: 30 | BO34: 31 | BQ34: 32 | BS34: 33 | BU34: 34 | BW34: 35 | BY34: 36 | CA34: 37 | CC34: 38 | CE34: 39 | CG34: 40 | CI34: 41 | CK34: 42 | CM34: 43 | CO34: 44 | CQ34: 45 | CS34: 46 | CU34: 47 | CW34: 48 | CY34: 49 | DA34: 50 | DC34: =CALCULADORA!B4 -> 0 | DD34: m³
B35: Faixa | D35: Valor/m³ | E35: Consumo na Faixa | F35: Valor total | G35: Consumo na Faixa | H35: Valor total | I35: Consumo na Faixa | J35: Valor total | K35: Consumo na Faixa | L35: Valor total | M35: Consumo na Faixa | N35: Valor total | O35: Consumo na Faixa | P35: Valor total | Q35: Consumo na Faixa | R35: Valor total | S35: Consumo na Faixa | T35: Valor total | U35: Consumo na Faixa | V35: Valor total | W35: Consumo na Faixa | X35: Valor total | Y35: Consumo na Faixa | Z35: Valor total | AA35: Consumo na Faixa | AB35: Valor total | AC35: Consumo na Faixa | AD35: Valor total | AE35: Consumo na Faixa | AF35: Valor total | AG35: Consumo na Faixa | AH35: Valor total | AI35: Consumo na Faixa | AJ35: Valor total | AK35: Consumo na Faixa | AL35: Valor total | AM35: Consumo na Faixa | AN35: Valor total | AO35: Consumo na Faixa | AP35: Valor total | AQ35: Consumo na Faixa | AR35: Valor total | AS35: Consumo na Faixa | AT35: Valor total | AU35: Consumo na Faixa | AV35: Valor total | AW35: Consumo na Faixa | AX35: Valor total | AY35: Consumo na Faixa | AZ35: Valor total | BA35: Consumo na Faixa | BB35: Valor total | BC35: Consumo na Faixa | BD35: Valor total | BE35: Consumo na Faixa | BF35: Valor total | BG35: Consumo na Faixa | BH35: Valor total | BI35: Consumo na Faixa | BJ35: Valor total | BK35: Consumo na Faixa | BL35: Valor total | BM35: Consumo na Faixa | BN35: Valor total | BO35: Consumo na Faixa | BP35: Valor total | BQ35: Consumo na Faixa | BR35: Valor total | BS35: Consumo na Faixa | BT35: Valor total | BU35: Consumo na Faixa | BV35: Valor total | BW35: Consumo na Faixa | BX35: Valor total | BY35: Consumo na Faixa | BZ35: Valor total | CA35: Consumo na Faixa | CB35: Valor total | CC35: Consumo na Faixa | CD35: Valor total | CE35: Consumo na Faixa | CF35: Valor total | CG35: Consumo na Faixa | CH35: Valor total | CI35: Consumo na Faixa | CJ35: Valor total | CK35: Consumo na Faixa | CL35: Valor total | CM35: Consumo na Faixa | CN35: Valor total | CO35: Consumo na Faixa | CP35: Valor total | CQ35: Consumo na Faixa | CR35: Valor total | CS35: Consumo na Faixa | CT35: Valor total | CU35: Consumo na Faixa | CV35: Valor total | CW35: Consumo na Faixa | CX35: Valor total | CY35: Consumo na Faixa | CZ35: Valor total | DA35: Consumo na Faixa | DB35: Valor total | DC35: Consumo na Faixa | DD35: Valor total | DQ35: tabela de apoio
B36: 0 | C36: 11 | D36: 0.48 | E36: 0 | F36: =E36*$D$20 -> 0 | G36: 1 | H36: =G36*$D$20 -> 1.967 | I36: 2 | J36: =I36*$D$20 -> 3.934 | K36: 3 | L36: =K36*$D$20 -> 5.901 | M36: 4 | N36: =M36*$D$20 -> 7.868 | O36: 5 | P36: =O36*$D$20 -> 9.835 | Q36: 6 | R36: =Q36*$D$20 -> 11.802 | S36: 7 | T36: =S36*$D$20 -> 13.769 | U36: 8 | V36: =U36*$D$20 -> 15.736 | W36: 9 | X36: =W36*$D$20 -> 17.703 | Y36: 10 | Z36: =Y36*$D$20 -> 19.67 | AA36: 10 | AB36: =AA36*$D$20 -> 19.67 | AC36: 10 | AD36: =AC36*$D$20 -> 19.67 | AE36: 10 | AF36: =AE36*$D$20 -> 19.67 | AG36: 10 | AH36: =AG36*$D$20 -> 19.67 | AI36: 10 | AJ36: =AI36*$D$20 -> 19.67 | AK36: 10 | AL36: =AK36*$D$20 -> 19.67 | AM36: 10 | AN36: =AM36*$D$20 -> 19.67 | AO36: 10 | AP36: =AO36*$D$20 -> 19.67 | AQ36: 10 | AR36: =AQ36*$D$20 -> 19.67 | AS36: 10 | AT36: =AS36*$D$20 -> 19.67 | AU36: 10 | AV36: =AU36*$D$20 -> 19.67 | AW36: 10 | AX36: =AW36*$D$20 -> 19.67 | AY36: 10 | AZ36: =AY36*$D$20 -> 19.67 | BA36: 10 | BB36: =BA36*$D$20 -> 19.67 | BC36: 10 | BD36: =BC36*$D$20 -> 19.67 | BE36: 10 | BF36: =BE36*$D$20 -> 19.67 | BG36: 10 | BH36: =BG36*$D$20 -> 19.67 | BI36: 10 | BJ36: =BI36*$D$20 -> 19.67 | BK36: 10 | BL36: =BK36*$D$20 -> 19.67 | BM36: 10 | BN36: =BM36*$D$20 -> 19.67 | BO36: 10 | BP36: =BO36*$D$20 -> 19.67 | BQ36: 10 | BR36: =BQ36*$D$20 -> 19.67 | BS36: 10 | BT36: =BS36*$D$20 -> 19.67 | BU36: 10 | BV36: =BU36*$D$20 -> 19.67 | BW36: 10 | BX36: =BW36*$D$20 -> 19.67 | BY36: 10 | BZ36: =BY36*$D$20 -> 19.67 | CA36: 10 | CB36: =CA36*$D$20 -> 19.67 | CC36: 10 | CD36: =CC36*$D$20 -> 19.67 | CE36: 10 | CF36: =CE36*$D$20 -> 19.67 | CG36: 10 | CH36: =CG36*$D$20 -> 19.67 | CI36: 10 | CJ36: =CI36*$D$20 -> 19.67 | CK36: 10 | CL36: =CK36*$D$20 -> 19.67 | CM36: 10 | CN36: =CM36*$D$20 -> 19.67 | CO36: 10 | CP36: =CO36*$D$20 -> 19.67 | CQ36: 10 | CR36: =CQ36*$D$20 -> 19.67 | CS36: 10 | CT36: =CS36*$D$20 -> 19.67 | CU36: 10 | CV36: =CU36*$D$20 -> 19.67 | CW36: 10 | CX36: =CW36*$D$20 -> 19.67 | CY36: 10 | CZ36: =CY36*$D$20 -> 19.67 | DA36: 10 | DB36: =DA36*$D$20 -> 19.67 | DC36: =IF((DC34)<=DQ36, DC34,DQ36) -> 0 | DD36: =DC36*$D$36 -> 0 | DQ36: =10*C33 -> 0 | DR36: consumo faixa 01
B37: 11 | C37: 26 | D37: 3.16 | F37: =E37*$D$21 -> 0 | H37: =G37*$D$21 -> 0 | J37: =I37*$D$21 -> 0 | L37: =K37*$D$21 -> 0 | N37: =M37*$D$21 -> 0 | P37: =O37*$D$21 -> 0 | R37: =Q37*$D$21 -> 0 | T37: =S37*$D$21 -> 0 | V37: =U37*$D$21 -> 0 | X37: =W37*$D$21 -> 0 | Z37: =Y37*$D$21 -> 0 | AA37: 1 | AB37: =AA37*$D$21 -> 3.433 | AC37: 2 | AD37: =AC37*$D$21 -> 6.866 | AE37: 3 | AF37: =AE37*$D$21 -> 10.299 | AG37: 4 | AH37: =AG37*$D$21 -> 13.732 | AI37: 5 | AJ37: =AI37*$D$21 -> 17.165 | AK37: 6 | AL37: =AK37*$D$21 -> 20.598 | AM37: 7 | AN37: =AM37*$D$21 -> 24.031 | AO37: 8 | AP37: =AO37*$D$21 -> 27.464 | AQ37: 9 | AR37: =AQ37*$D$21 -> 30.897 | AS37: 10 | AT37: =AS37*$D$21 -> 34.33 | AU37: 11 | AV37: =AU37*$D$21 -> 37.763 | AW37: 12 | AX37: =AW37*$D$21 -> 41.196 | AY37: 13 | AZ37: =AY37*$D$21 -> 44.629 | BA37: 14 | BB37: =BA37*$D$21 -> 48.062 | BC37: 15 | BD37: =BC37*$D$21 -> 51.495 | BE37: 15 | BF37: =BE37*$D$21 -> 51.495 | BG37: 15 | BH37: =BG37*$D$21 -> 51.495 | BI37: 15 | BJ37: =BI37*$D$21 -> 51.495 | BK37: 15 | BL37: =BK37*$D$21 -> 51.495 | BM37: 15 | BN37: =BM37*$D$21 -> 51.495 | BO37: 15 | BP37: =BO37*$D$21 -> 51.495 | BQ37: 15 | BR37: =BQ37*$D$21 -> 51.495 | BS37: 15 | BT37: =BS37*$D$21 -> 51.495 | BU37: 15 | BV37: =BU37*$D$21 -> 51.495 | BW37: 15 | BX37: =BW37*$D$21 -> 51.495 | BY37: 15 | BZ37: =BY37*$D$21 -> 51.495 | CA37: 15 | CB37: =CA37*$D$21 -> 51.495 | CC37: 15 | CD37: =CC37*$D$21 -> 51.495 | CE37: 15 | CF37: =CE37*$D$21 -> 51.495 | CG37: 15 | CH37: =CG37*$D$21 -> 51.495 | CI37: 15 | CJ37: =CI37*$D$21 -> 51.495 | CK37: 15 | CL37: =CK37*$D$21 -> 51.495 | CM37: 15 | CN37: =CM37*$D$21 -> 51.495 | CO37: 15 | CP37: =CO37*$D$21 -> 51.495 | CQ37: 15 | CR37: =CQ37*$D$21 -> 51.495 | CS37: 15 | CT37: =CS37*$D$21 -> 51.495 | CU37: 15 | CV37: =CU37*$D$21 -> 51.495 | CW37: 15 | CX37: =CW37*$D$21 -> 51.495 | CY37: 15 | CZ37: =CY37*$D$21 -> 51.495 | DA37: 15 | DB37: =DA37*$D$21 -> 51.495 | DC37: =IF($DC$34<$DQ$36,0,IF($DC$34>($DQ$36+$DQ$37),$DQ$37,IF($DQ$36<$DC$34>$DQ$37,$DC$34-$DQ$36))) -> 0 | DD37: =DC37*$D$37 -> 0 | DQ37: =15*C33 -> 0 | DR37: consumo faixa 02
B38: ≥ 25 | D38: 4.33 | F38: =E38*$D$23 -> 0 | H38: =G38*$D$23 -> 0 | J38: =I38*$D$23 -> 0 | L38: =K38*$D$23 -> 0 | N38: =M38*$D$23 -> 0 | P38: =O38*$D$23 -> 0 | R38: =Q38*$D$23 -> 0 | T38: =S38*$D$23 -> 0 | V38: =U38*$D$23 -> 0 | X38: =W38*$D$23 -> 0 | Z38: =Y38*$D$23 -> 0 | AB38: =AA38*$D$23 -> 0 | AD38: =AC38*$D$23 -> 0 | AF38: =AE38*$D$23 -> 0 | AH38: =AG38*$D$23 -> 0 | AJ38: =AI38*$D$23 -> 0 | AL38: =AK38*$D$23 -> 0 | AN38: =AM38*$D$23 -> 0 | AP38: =AO38*$D$23 -> 0 | AR38: =AQ38*$D$23 -> 0 | AT38: =AS38*$D$23 -> 0 | AV38: =AU38*$D$23 -> 0 | AX38: =AW38*$D$23 -> 0 | AZ38: =AY38*$D$23 -> 0 | BB38: =BA38*$D$23 -> 0 | BD38: =BC38*$D$23 -> 0 | BF38: =BE38*$D$23 -> 0 | BH38: =BG38*$D$23 -> 0 | BJ38: =BI38*$D$23 -> 0 | BL38: =BK38*$D$23 -> 0 | BN38: =BM38*$D$23 -> 0 | BP38: =BO38*$D$23 -> 0 | BR38: =BQ38*$D$23 -> 0 | BT38: =BS38*$D$23 -> 0 | BV38: =BU38*$D$23 -> 0 | BX38: =BW38*$D$23 -> 0 | BZ38: =BY38*$D$23 -> 0 | CB38: =CA38*$D$23 -> 0 | CD38: =CC38*$D$23 -> 0 | CF38: =CE38*$D$23 -> 0 | CH38: =CG38*$D$23 -> 0 | CJ38: =CI38*$D$23 -> 0 | CL38: =CK38*$D$23 -> 0 | CN38: =CM38*$D$23 -> 0 | CP38: =CO38*$D$23 -> 0 | CR38: =CQ38*$D$23 -> 0 | CT38: =CS38*$D$23 -> 0 | CV38: =CU38*$D$23 -> 0 | CX38: =CW38*$D$23 -> 0 | CZ38: =CY38*$D$23 -> 0 | DB38: =DA38*$D$23 -> 0 | DC38: =IF($DQ$38>0,$DQ$38) -> FALSE | DD38: =DC38*$D$38 -> 0 | DQ38: =DC34-DQ36-DQ37 -> 0 | DR38: consumo acima da faixa 03
B39: TOTAL CONSUMO | F39: =SUM(F36:F38) -> 0 | H39: =SUM(H36:H38) -> 1.967 | J39: =SUM(J36:J38) -> 3.934 | L39: =SUM(L36:L38) -> 5.901 | N39: =SUM(N36:N38) -> 7.868 | P39: =SUM(P36:P38) -> 9.835 | R39: =SUM(R36:R38) -> 11.802 | T39: =SUM(T36:T38) -> 13.769 | V39: =SUM(V36:V38) -> 15.736 | X39: =SUM(X36:X38) -> 17.703 | Z39: =SUM(Z36:Z38) -> 19.67 | AB39: =SUM(AB36:AB38) -> 23.103 | AD39: =SUM(AD36:AD38) -> 26.536 | AF39: =SUM(AF36:AF38) -> 29.969 | AH39: =SUM(AH36:AH38) -> 33.402 | AJ39: =SUM(AJ36:AJ38) -> 36.835 | AL39: =SUM(AL36:AL38) -> 40.268 | AN39: =SUM(AN36:AN38) -> 43.701 | AP39: =SUM(AP36:AP38) -> 47.134 | AR39: =SUM(AR36:AR38) -> 50.567 | AT39: =SUM(AT36:AT38) -> 54 | AV39: =SUM(AV36:AV38) -> 57.433 | AX39: =SUM(AX36:AX38) -> 60.866 | AZ39: =SUM(AZ36:AZ38) -> 64.299 | BB39: =SUM(BB36:BB38) -> 67.732 | BD39: =SUM(BD36:BD38) -> 71.165 | BF39: =SUM(BF36:BF38) -> 71.165 | BH39: =SUM(BH36:BH38) -> 71.165 | BJ39: =SUM(BJ36:BJ38) -> 71.165 | BL39: =SUM(BL36:BL38) -> 71.165 | BN39: =SUM(BN36:BN38) -> 71.165 | BP39: =SUM(BP36:BP38) -> 71.165 | BR39: =SUM(BR36:BR38) -> 71.165 | BT39: =SUM(BT36:BT38) -> 71.165 | BV39: =SUM(BV36:BV38) -> 71.165 | BX39: =SUM(BX36:BX38) -> 71.165 | BZ39: =SUM(BZ36:BZ38) -> 71.165 | CB39: =SUM(CB36:CB38) -> 71.165 | CD39: =SUM(CD36:CD38) -> 71.165 | CF39: =SUM(CF36:CF38) -> 71.165 | CH39: =SUM(CH36:CH38) -> 71.165 | CJ39: =SUM(CJ36:CJ38) -> 71.165 | CL39: =SUM(CL36:CL38) -> 71.165 | CN39: =SUM(CN36:CN38) -> 71.165 | CP39: =SUM(CP36:CP38) -> 71.165 | CR39: =SUM(CR36:CR38) -> 71.165 | CT39: =SUM(CT36:CT38) -> 71.165 | CV39: =SUM(CV36:CV38) -> 71.165 | CX39: =SUM(CX36:CX38) -> 71.165 | CZ39: =SUM(CZ36:CZ38) -> 71.165 | DB39: =SUM(DB36:DB38) -> 71.165 | DD39: =SUM(DD36:DD38) -> 0
B40: TOTAL TFDI UNIDADES | F40: =IF((F39<=$D$18),$D$18,F39) -> 19.67 | H40: =IF((H39<=$D$18),$D$18,H39) -> 19.67 | J40: =IF((J39<=$D$18),$D$18,J39) -> 19.67 | L40: =IF((L39<=$D$18),$D$18,L39) -> 19.67 | N40: =IF((N39<=$D$18),$D$18,N39) -> 19.67 | P40: =IF((P39<=$D$18),$D$18,P39) -> 19.67 | R40: =IF((R39<=$D$18),$D$18,R39) -> 19.67 | T40: =IF((T39<=$D$18),$D$18,T39) -> 19.67 | V40: =IF((V39<=$D$18),$D$18,V39) -> 19.67 | X40: =IF((X39<=$D$18),$D$18,X39) -> 19.67 | Z40: =IF((Z39<=$D$18),$D$18,Z39) -> 19.67 | AB40: =IF((AB39<=$D$18),$D$18,AB39) -> 23.103 | AD40: =IF((AD39<=$D$18),$D$18,AD39) -> 26.536 | AF40: =IF((AF39<=$D$18),$D$18,AF39) -> 29.969 | AH40: =IF((AH39<=$D$18),$D$18,AH39) -> 33.402 | AJ40: =IF((AJ39<=$D$18),$D$18,AJ39) -> 36.835 | AL40: =IF((AL39<=$D$18),$D$18,AL39) -> 40.268 | AN40: =IF((AN39<=$D$18),$D$18,AN39) -> 43.701 | AP40: =IF((AP39<=$D$18),$D$18,AP39) -> 47.134 | AR40: =IF((AR39<=$D$18),$D$18,AR39) -> 50.567 | AT40: =IF((AT39<=$D$18),$D$18,AT39) -> 54 | AV40: =IF((AV39<=$D$18),$D$18,AV39) -> 57.433 | AX40: =IF((AX39<=$D$18),$D$18,AX39) -> 60.866 | AZ40: =IF((AZ39<=$D$18),$D$18,AZ39) -> 64.299 | BB40: =IF((BB39<=$D$18),$D$18,BB39) -> 67.732 | BD40: =IF((BD39<=$D$18),$D$18,BD39) -> 71.165 | BF40: =IF((BF39<=$D$18),$D$18,BF39) -> 71.165 | BH40: =IF((BH39<=$D$18),$D$18,BH39) -> 71.165 | BJ40: =IF((BJ39<=$D$18),$D$18,BJ39) -> 71.165 | BL40: =IF((BL39<=$D$18),$D$18,BL39) -> 71.165 | BN40: =IF((BN39<=$D$18),$D$18,BN39) -> 71.165 | BP40: =IF((BP39<=$D$18),$D$18,BP39) -> 71.165 | BR40: =IF((BR39<=$D$18),$D$18,BR39) -> 71.165 | BT40: =IF((BT39<=$D$18),$D$18,BT39) -> 71.165 | BV40: =IF((BV39<=$D$18),$D$18,BV39) -> 71.165 | BX40: =IF((BX39<=$D$18),$D$18,BX39) -> 71.165 | BZ40: =IF((BZ39<=$D$18),$D$18,BZ39) -> 71.165 | CB40: =IF((CB39<=$D$18),$D$18,CB39) -> 71.165 | CD40: =IF((CD39<=$D$18),$D$18,CD39) -> 71.165 | CF40: =IF((CF39<=$D$18),$D$18,CF39) -> 71.165 | CH40: =IF((CH39<=$D$18),$D$18,CH39) -> 71.165 | CJ40: =IF((CJ39<=$D$18),$D$18,CJ39) -> 71.165 | CL40: =IF((CL39<=$D$18),$D$18,CL39) -> 71.165 | CN40: =IF((CN39<=$D$18),$D$18,CN39) -> 71.165 | CP40: =IF((CP39<=$D$18),$D$18,CP39) -> 71.165 | CR40: =IF((CR39<=$D$18),$D$18,CR39) -> 71.165 | CT40: =IF((CT39<=$D$18),$D$18,CT39) -> 71.165 | CV40: =IF((CV39<=$D$18),$D$18,CV39) -> 71.165 | CX40: =IF((CX39<=$D$18),$D$18,CX39) -> 71.165 | CZ40: =IF((CZ39<=$D$18),$D$18,CZ39) -> 71.165 | DB40: =IF((DB39<=$D$18),$D$18,DB39) -> 71.165 | DD40: =D34*C33 -> 0
B41: FATURAMENTO ESGOTO 80% DO CONSUMO | F41: =#REF! ->  | H41: =#REF! ->  | J41: =#REF! ->  | L41: =#REF! ->  | N41: =#REF! ->  | P41: =#REF! ->  | R41: =#REF! ->  | T41: =#REF! ->  | V41: =#REF! ->  | X41: =#REF! ->  | Z41: =#REF! ->  | AB41: =#REF! ->  | AD41: =#REF! ->  | AF41: =#REF! ->  | AH41: =#REF! ->  | AJ41: =#REF! ->  | AL41: =#REF! ->  | AN41: =#REF! ->  | AP41: =#REF! ->  | AR41: =#REF! ->  | AT41: =#REF! ->  | AV41: =#REF! ->  | AX41: =#REF! ->  | AZ41: =#REF! ->  | BB41: =#REF! ->  | BD41: =#REF! ->  | BF41: =#REF! ->  | BH41: =#REF! ->  | BJ41: =#REF! ->  | BL41: =#REF! ->  | BN41: =#REF! ->  | BP41: =#REF! ->  | BR41: =#REF! ->  | BT41: =#REF! ->  | BV41: =#REF! ->  | BX41: =#REF! ->  | BZ41: =#REF! ->  | CB41: =#REF! ->  | CD41: =#REF! ->  | CF41: =#REF! ->  | CH41: =#REF! ->  | CJ41: =#REF! ->  | CL41: =#REF! ->  | CN41: =#REF! ->  | CP41: =#REF! ->  | CR41: =#REF! ->  | CT41: =#REF! ->  | CV41: =#REF! ->  | CX41: =#REF! ->  | CZ41: =#REF! ->  | DB41: =#REF! ->  | DD41: =DD39*0.8 -> 0 | DF41: Diferença de R$ 819,78 em relação à primeira tabela (atual-sem a jurisprudência) | DI41: =DD42-DD13 -> 0
B42: VALOR TOTAL DA FATURA | F42: =#REF!+F41 ->  | H42: =#REF!+H41 ->  | J42: =#REF!+J41 ->  | L42: =#REF!+L41 ->  | N42: =#REF!+N41 ->  | P42: =#REF!+P41 ->  | R42: =#REF!+R41 ->  | T42: =#REF!+T41 ->  | V42: =#REF!+V41 ->  | X42: =#REF!+X41 ->  | Z42: =#REF!+Z41 ->  | AB42: =#REF!+AB41 ->  | AD42: =#REF!+AD41 ->  | AF42: =#REF!+AF41 ->  | AH42: =#REF!+AH41 ->  | AJ42: =#REF!+AJ41 ->  | AL42: =#REF!+AL41 ->  | AN42: =#REF!+AN41 ->  | AP42: =#REF!+AP41 ->  | AR42: =#REF!+AR41 ->  | AT42: =#REF!+AT41 ->  | AV42: =#REF!+AV41 ->  | AX42: =#REF!+AX41 ->  | AZ42: =#REF!+AZ41 ->  | BB42: =#REF!+BB41 ->  | BD42: =#REF!+BD41 ->  | BF42: =#REF!+BF41 ->  | BH42: =#REF!+BH41 ->  | BJ42: =#REF!+BJ41 ->  | BL42: =#REF!+BL41 ->  | BN42: =#REF!+BN41 ->  | BP42: =#REF!+BP41 ->  | BR42: =#REF!+BR41 ->  | BT42: =#REF!+BT41 ->  | BV42: =#REF!+BV41 ->  | BX42: =#REF!+BX41 ->  | BZ42: =#REF!+BZ41 ->  | CB42: =#REF!+CB41 ->  | CD42: =#REF!+CD41 ->  | CF42: =#REF!+CF41 ->  | CH42: =#REF!+CH41 ->  | CJ42: =#REF!+CJ41 ->  | CL42: =#REF!+CL41 ->  | CN42: =#REF!+CN41 ->  | CP42: =#REF!+CP41 ->  | CR42: =#REF!+CR41 ->  | CT42: =#REF!+CT41 ->  | CV42: =#REF!+CV41 ->  | CX42: =#REF!+CX41 ->  | CZ42: =#REF!+CZ41 ->  | DB42: =#REF!+DB41 ->  | DD42: =DD39+DD40+DD41 -> 0
A46: CONDOMÍNIO em FLORIANÓPOLIS (caso real)
C48: 113 ECONOMIAS
A49: RESIDENCIAL | B49: TFDI sem RTP | D49: 28.85 | E49: 0 | G49: 1 | I49: 2 | K49: 3 | M49: 4 | O49: 5 | Q49: 6 | S49: 7 | U49: 8 | W49: 9 | Y49: 10 | AA49: 11 | AC49: 12 | AE49: 13 | AG49: 14 | AI49: 15 | AK49: 16 | AM49: 17 | AO49: 18 | AQ49: 19 | AS49: 20 | AU49: 21 | AW49: 22 | AY49: 23 | BA49: 24 | BC49: 25 | BE49: 26 | BG49: 27 | BI49: 28 | BK49: 29 | BM49: 30 | BO49: 31 | BQ49: 32 | BS49: 33 | BU49: 34 | BW49: 35 | BY49: 36 | CA49: 37 | CC49: 38 | CE49: 39 | CG49: 40 | CI49: 41 | CK49: 42 | CM49: 43 | CO49: 44 | CQ49: 45 | CS49: 46 | CU49: 47 | CW49: 48 | CY49: 49 | DA49: 50 | DC49: 1080 m³
B50: Faixa | D50: Valor/m³ | E50: Consumo na Faixa | F50: Valor total | G50: Consumo na Faixa | H50: Valor total | I50: Consumo na Faixa | J50: Valor total | K50: Consumo na Faixa | L50: Valor total | M50: Consumo na Faixa | N50: Valor total | O50: Consumo na Faixa | P50: Valor total | Q50: Consumo na Faixa | R50: Valor total | S50: Consumo na Faixa | T50: Valor total | U50: Consumo na Faixa | V50: Valor total | W50: Consumo na Faixa | X50: Valor total | Y50: Consumo na Faixa | Z50: Valor total | AA50: Consumo na Faixa | AB50: Valor total | AC50: Consumo na Faixa | AD50: Valor total | AE50: Consumo na Faixa | AF50: Valor total | AG50: Consumo na Faixa | AH50: Valor total | AI50: Consumo na Faixa | AJ50: Valor total | AK50: Consumo na Faixa | AL50: Valor total | AM50: Consumo na Faixa | AN50: Valor total | AO50: Consumo na Faixa | AP50: Valor total | AQ50: Consumo na Faixa | AR50: Valor total | AS50: Consumo na Faixa | AT50: Valor total | AU50: Consumo na Faixa | AV50: Valor total | AW50: Consumo na Faixa | AX50: Valor total | AY50: Consumo na Faixa | AZ50: Valor total | BA50: Consumo na Faixa | BB50: Valor total | BC50: Consumo na Faixa | BD50: Valor total | BE50: Consumo na Faixa | BF50: Valor total | BG50: Consumo na Faixa | BH50: Valor total | BI50: Consumo na Faixa | BJ50: Valor total | BK50: Consumo na Faixa | BL50: Valor total | BM50: Consumo na Faixa | BN50: Valor total | BO50: Consumo na Faixa | BP50: Valor total | BQ50: Consumo na Faixa | BR50: Valor total | BS50: Consumo na Faixa | BT50: Valor total | BU50: Consumo na Faixa | BV50: Valor total | BW50: Consumo na Faixa | BX50: Valor total | BY50: Consumo na Faixa | BZ50: Valor total | CA50: Consumo na Faixa | CB50: Valor total | CC50: Consumo na Faixa | CD50: Valor total | CE50: Consumo na Faixa | CF50: Valor total | CG50: Consumo na Faixa | CH50: Valor total | CI50: Consumo na Faixa | CJ50: Valor total | CK50: Consumo na Faixa | CL50: Valor total | CM50: Consumo na Faixa | CN50: Valor total | CO50: Consumo na Faixa | CP50: Valor total | CQ50: Consumo na Faixa | CR50: Valor total | CS50: Consumo na Faixa | CT50: Valor total | CU50: Consumo na Faixa | CV50: Valor total | CW50: Consumo na Faixa | CX50: Valor total | CY50: Consumo na Faixa | CZ50: Valor total | DA50: Consumo na Faixa | DB50: Valor total | DC50: Consumo na Faixa | DD50: Valor total
B51: 0 | C51: 11 | D51: 1.93 | E51: 0 | F51: =E51*$D$20 -> 0 | G51: 1 | H51: =G51*$D$20 -> 1.967 | I51: 2 | J51: =I51*$D$20 -> 3.934 | K51: 3 | L51: =K51*$D$20 -> 5.901 | M51: 4 | N51: =M51*$D$20 -> 7.868 | O51: 5 | P51: =O51*$D$20 -> 9.835 | Q51: 6 | R51: =Q51*$D$20 -> 11.802 | S51: 7 | T51: =S51*$D$20 -> 13.769 | U51: 8 | V51: =U51*$D$20 -> 15.736 | W51: 9 | X51: =W51*$D$20 -> 17.703 | Y51: 10 | Z51: =Y51*$D$20 -> 19.67 | AA51: 10 | AB51: =AA51*$D$20 -> 19.67 | AC51: 10 | AD51: =AC51*$D$20 -> 19.67 | AE51: 10 | AF51: =AE51*$D$20 -> 19.67 | AG51: 10 | AH51: =AG51*$D$20 -> 19.67 | AI51: 10 | AJ51: =AI51*$D$20 -> 19.67 | AK51: 10 | AL51: =AK51*$D$20 -> 19.67 | AM51: 10 | AN51: =AM51*$D$20 -> 19.67 | AO51: 10 | AP51: =AO51*$D$20 -> 19.67 | AQ51: 10 | AR51: =AQ51*$D$20 -> 19.67 | AS51: 10 | AT51: =AS51*$D$20 -> 19.67 | AU51: 10 | AV51: =AU51*$D$20 -> 19.67 | AW51: 10 | AX51: =AW51*$D$20 -> 19.67 | AY51: 10 | AZ51: =AY51*$D$20 -> 19.67 | BA51: 10 | BB51: =BA51*$D$20 -> 19.67 | BC51: 10 | BD51: =BC51*$D$20 -> 19.67 | BE51: 10 | BF51: =BE51*$D$20 -> 19.67 | BG51: 10 | BH51: =BG51*$D$20 -> 19.67 | BI51: 10 | BJ51: =BI51*$D$20 -> 19.67 | BK51: 10 | BL51: =BK51*$D$20 -> 19.67 | BM51: 10 | BN51: =BM51*$D$20 -> 19.67 | BO51: 10 | BP51: =BO51*$D$20 -> 19.67 | BQ51: 10 | BR51: =BQ51*$D$20 -> 19.67 | BS51: 10 | BT51: =BS51*$D$20 -> 19.67 | BU51: 10 | BV51: =BU51*$D$20 -> 19.67 | BW51: 10 | BX51: =BW51*$D$20 -> 19.67 | BY51: 10 | BZ51: =BY51*$D$20 -> 19.67 | CA51: 10 | CB51: =CA51*$D$20 -> 19.67 | CC51: 10 | CD51: =CC51*$D$20 -> 19.67 | CE51: 10 | CF51: =CE51*$D$20 -> 19.67 | CG51: 10 | CH51: =CG51*$D$20 -> 19.67 | CI51: 10 | CJ51: =CI51*$D$20 -> 19.67 | CK51: 10 | CL51: =CK51*$D$20 -> 19.67 | CM51: 10 | CN51: =CM51*$D$20 -> 19.67 | CO51: 10 | CP51: =CO51*$D$20 -> 19.67 | CQ51: 10 | CR51: =CQ51*$D$20 -> 19.67 | CS51: 10 | CT51: =CS51*$D$20 -> 19.67 | CU51: 10 | CV51: =CU51*$D$20 -> 19.67 | CW51: 10 | CX51: =CW51*$D$20 -> 19.67 | CY51: 10 | CZ51: =CY51*$D$20 -> 19.67 | DA51: 10 | DB51: =DA51*$D$20 -> 19.67 | DC51: 1080 | DD51: =DC51*$D$51 -> 2084.4 | DF51: Simulação nova estrutura tarifária
B52: 11 | C52: 26 | D52: 8.64 | F52: =E52*$D$21 -> 0 | H52: =G52*$D$21 -> 0 | J52: =I52*$D$21 -> 0 | L52: =K52*$D$21 -> 0 | N52: =M52*$D$21 -> 0 | P52: =O52*$D$21 -> 0 | R52: =Q52*$D$21 -> 0 | T52: =S52*$D$21 -> 0 | V52: =U52*$D$21 -> 0 | X52: =W52*$D$21 -> 0 | Z52: =Y52*$D$21 -> 0 | AA52: 1 | AB52: =AA52*$D$21 -> 3.433 | AC52: 2 | AD52: =AC52*$D$21 -> 6.866 | AE52: 3 | AF52: =AE52*$D$21 -> 10.299 | AG52: 4 | AH52: =AG52*$D$21 -> 13.732 | AI52: 5 | AJ52: =AI52*$D$21 -> 17.165 | AK52: 6 | AL52: =AK52*$D$21 -> 20.598 | AM52: 7 | AN52: =AM52*$D$21 -> 24.031 | AO52: 8 | AP52: =AO52*$D$21 -> 27.464 | AQ52: 9 | AR52: =AQ52*$D$21 -> 30.897 | AS52: 10 | AT52: =AS52*$D$21 -> 34.33 | AU52: 11 | AV52: =AU52*$D$21 -> 37.763 | AW52: 12 | AX52: =AW52*$D$21 -> 41.196 | AY52: 13 | AZ52: =AY52*$D$21 -> 44.629 | BA52: 14 | BB52: =BA52*$D$21 -> 48.062 | BC52: 15 | BD52: =BC52*$D$21 -> 51.495 | BE52: 15 | BF52: =BE52*$D$21 -> 51.495 | BG52: 15 | BH52: =BG52*$D$21 -> 51.495 | BI52: 15 | BJ52: =BI52*$D$21 -> 51.495 | BK52: 15 | BL52: =BK52*$D$21 -> 51.495 | BM52: 15 | BN52: =BM52*$D$21 -> 51.495 | BO52: 15 | BP52: =BO52*$D$21 -> 51.495 | BQ52: 15 | BR52: =BQ52*$D$21 -> 51.495 | BS52: 15 | BT52: =BS52*$D$21 -> 51.495 | BU52: 15 | BV52: =BU52*$D$21 -> 51.495 | BW52: 15 | BX52: =BW52*$D$21 -> 51.495 | BY52: 15 | BZ52: =BY52*$D$21 -> 51.495 | CA52: 15 | CB52: =CA52*$D$21 -> 51.495 | CC52: 15 | CD52: =CC52*$D$21 -> 51.495 | CE52: 15 | CF52: =CE52*$D$21 -> 51.495 | CG52: 15 | CH52: =CG52*$D$21 -> 51.495 | CI52: 15 | CJ52: =CI52*$D$21 -> 51.495 | CK52: 15 | CL52: =CK52*$D$21 -> 51.495 | CM52: 15 | CN52: =CM52*$D$21 -> 51.495 | CO52: 15 | CP52: =CO52*$D$21 -> 51.495 | CQ52: 15 | CR52: =CQ52*$D$21 -> 51.495 | CS52: 15 | CT52: =CS52*$D$21 -> 51.495 | CU52: 15 | CV52: =CU52*$D$21 -> 51.495 | CW52: 15 | CX52: =CW52*$D$21 -> 51.495 | CY52: 15 | CZ52: =CY52*$D$21 -> 51.495 | DA52: 15 | DB52: =DA52*$D$21 -> 51.495 | DD52: =DC52*$D$37 -> 0
B53: 26 | C53: 51 | D53: 12.12 | F53: =E53*$D$22 -> 0 | H53: =G53*$D$22 -> 0 | J53: =I53*$D$22 -> 0 | L53: =K53*$D$22 -> 0 | N53: =M53*$D$22 -> 0 | P53: =O53*$D$22 -> 0 | R53: =Q53*$D$22 -> 0 | T53: =S53*$D$22 -> 0 | V53: =U53*$D$22 -> 0 | X53: =W53*$D$22 -> 0 | Z53: =Y53*$D$22 -> 0 | AB53: =AA53*$D$22 -> 0 | AD53: =AC53*$D$22 -> 0 | AF53: =AE53*$D$22 -> 0 | AH53: =AG53*$D$22 -> 0 | AJ53: =AI53*$D$22 -> 0 | AL53: =AK53*$D$22 -> 0 | AN53: =AM53*$D$22 -> 0 | AP53: =AO53*$D$22 -> 0 | AR53: =AQ53*$D$22 -> 0 | AT53: =AS53*$D$22 -> 0 | AV53: =AU53*$D$22 -> 0 | AX53: =AW53*$D$22 -> 0 | AZ53: =AY53*$D$22 -> 0 | BB53: =BA53*$D$22 -> 0 | BD53: =BC53*$D$22 -> 0 | BE53: 1 | BF53: =BE53*$D$22 -> 4.05 | BG53: 2 | BH53: =BG53*$D$22 -> 8.1 | BI53: 3 | BJ53: =BI53*$D$22 -> 12.15 | BK53: 4 | BL53: =BK53*$D$22 -> 16.2 | BM53: 5 | BN53: =BM53*$D$22 -> 20.25 | BO53: 6 | BP53: =BO53*$D$22 -> 24.3 | BQ53: 7 | BR53: =BQ53*$D$22 -> 28.35 | BS53: 8 | BT53: =BS53*$D$22 -> 32.4 | BU53: 9 | BV53: =BU53*$D$22 -> 36.45 | BW53: 10 | BX53: =BW53*$D$22 -> 40.5 | BY53: 11 | BZ53: =BY53*$D$22 -> 44.55 | CA53: 12 | CB53: =CA53*$D$22 -> 48.6 | CC53: 13 | CD53: =CC53*$D$22 -> 52.65 | CE53: 14 | CF53: =CE53*$D$22 -> 56.7 | CG53: 15 | CH53: =CG53*$D$22 -> 60.75 | CI53: 16 | CJ53: =CI53*$D$22 -> 64.8 | CK53: 17 | CL53: =CK53*$D$22 -> 68.85 | CM53: 18 | CN53: =CM53*$D$22 -> 72.9 | CO53: 19 | CP53: =CO53*$D$22 -> 76.95 | CQ53: 20 | CR53: =CQ53*$D$22 -> 81 | CS53: 21 | CT53: =CS53*$D$22 -> 85.05 | CU53: 22 | CV53: =CU53*$D$22 -> 89.1 | CW53: 23 | CX53: =CW53*$D$22 -> 93.15 | CY53: 24 | CZ53: =CY53*$D$22 -> 97.2 | DA53: 25 | DB53: =DA53*$D$22 -> 101.25 | DD53: =DC53*#REF! -> 
B54: 51 | C54: 9999 | D54: 15.19 | F54: =E54*$D$23 -> 0 | H54: =G54*$D$23 -> 0 | J54: =I54*$D$23 -> 0 | L54: =K54*$D$23 -> 0 | N54: =M54*$D$23 -> 0 | P54: =O54*$D$23 -> 0 | R54: =Q54*$D$23 -> 0 | T54: =S54*$D$23 -> 0 | V54: =U54*$D$23 -> 0 | X54: =W54*$D$23 -> 0 | Z54: =Y54*$D$23 -> 0 | AB54: =AA54*$D$23 -> 0 | AD54: =AC54*$D$23 -> 0 | AF54: =AE54*$D$23 -> 0 | AH54: =AG54*$D$23 -> 0 | AJ54: =AI54*$D$23 -> 0 | AL54: =AK54*$D$23 -> 0 | AN54: =AM54*$D$23 -> 0 | AP54: =AO54*$D$23 -> 0 | AR54: =AQ54*$D$23 -> 0 | AT54: =AS54*$D$23 -> 0 | AV54: =AU54*$D$23 -> 0 | AX54: =AW54*$D$23 -> 0 | AZ54: =AY54*$D$23 -> 0 | BB54: =BA54*$D$23 -> 0 | BD54: =BC54*$D$23 -> 0 | BF54: =BE54*$D$23 -> 0 | BH54: =BG54*$D$23 -> 0 | BJ54: =BI54*$D$23 -> 0 | BL54: =BK54*$D$23 -> 0 | BN54: =BM54*$D$23 -> 0 | BP54: =BO54*$D$23 -> 0 | BR54: =BQ54*$D$23 -> 0 | BT54: =BS54*$D$23 -> 0 | BV54: =BU54*$D$23 -> 0 | BX54: =BW54*$D$23 -> 0 | BZ54: =BY54*$D$23 -> 0 | CB54: =CA54*$D$23 -> 0 | CD54: =CC54*$D$23 -> 0 | CF54: =CE54*$D$23 -> 0 | CH54: =CG54*$D$23 -> 0 | CJ54: =CI54*$D$23 -> 0 | CL54: =CK54*$D$23 -> 0 | CN54: =CM54*$D$23 -> 0 | CP54: =CO54*$D$23 -> 0 | CR54: =CQ54*$D$23 -> 0 | CT54: =CS54*$D$23 -> 0 | CV54: =CU54*$D$23 -> 0 | CX54: =CW54*$D$23 -> 0 | CZ54: =CY54*$D$23 -> 0 | DB54: =DA54*$D$23 -> 0 | DD54: =DC54*$D$38 -> 0
B55: TOTAL CONSUMO | F55: =SUM(F51:F54) -> 0 | H55: =SUM(H51:H54) -> 1.967 | J55: =SUM(J51:J54) -> 3.934 | L55: =SUM(L51:L54) -> 5.901 | N55: =SUM(N51:N54) -> 7.868 | P55: =SUM(P51:P54) -> 9.835 | R55: =SUM(R51:R54) -> 11.802 | T55: =SUM(T51:T54) -> 13.769 | V55: =SUM(V51:V54) -> 15.736 | X55: =SUM(X51:X54) -> 17.703 | Z55: =SUM(Z51:Z54) -> 19.67 | AB55: =SUM(AB51:AB54) -> 23.103 | AD55: =SUM(AD51:AD54) -> 26.536 | AF55: =SUM(AF51:AF54) -> 29.969 | AH55: =SUM(AH51:AH54) -> 33.402 | AJ55: =SUM(AJ51:AJ54) -> 36.835 | AL55: =SUM(AL51:AL54) -> 40.268 | AN55: =SUM(AN51:AN54) -> 43.701 | AP55: =SUM(AP51:AP54) -> 47.134 | AR55: =SUM(AR51:AR54) -> 50.567 | AT55: =SUM(AT51:AT54) -> 54 | AV55: =SUM(AV51:AV54) -> 57.433 | AX55: =SUM(AX51:AX54) -> 60.866 | AZ55: =SUM(AZ51:AZ54) -> 64.299 | BB55: =SUM(BB51:BB54) -> 67.732 | BD55: =SUM(BD51:BD54) -> 71.165 | BF55: =SUM(BF51:BF54) -> 75.215 | BH55: =SUM(BH51:BH54) -> 79.265 | BJ55: =SUM(BJ51:BJ54) -> 83.315 | BL55: =SUM(BL51:BL54) -> 87.365 | BN55: =SUM(BN51:BN54) -> 91.415 | BP55: =SUM(BP51:BP54) -> 95.465 | BR55: =SUM(BR51:BR54) -> 99.515 | BT55: =SUM(BT51:BT54) -> 103.565 | BV55: =SUM(BV51:BV54) -> 107.615 | BX55: =SUM(BX51:BX54) -> 111.665 | BZ55: =SUM(BZ51:BZ54) -> 115.715 | CB55: =SUM(CB51:CB54) -> 119.765 | CD55: =SUM(CD51:CD54) -> 123.815 | CF55: =SUM(CF51:CF54) -> 127.865 | CH55: =SUM(CH51:CH54) -> 131.915 | CJ55: =SUM(CJ51:CJ54) -> 135.965 | CL55: =SUM(CL51:CL54) -> 140.015 | CN55: =SUM(CN51:CN54) -> 144.065 | CP55: =SUM(CP51:CP54) -> 148.115 | CR55: =SUM(CR51:CR54) -> 152.165 | CT55: =SUM(CT51:CT54) -> 156.215 | CV55: =SUM(CV51:CV54) -> 160.265 | CX55: =SUM(CX51:CX54) -> 164.315 | CZ55: =SUM(CZ51:CZ54) -> 168.365 | DB55: =SUM(DB51:DB54) -> 172.415 | DD55: =SUM(DD51:DD54) -> 
B56: TOTAL TFDI 113 economias | F56: =IF((F55<=$D$18),$D$18,F55) -> 19.67 | H56: =IF((H55<=$D$18),$D$18,H55) -> 19.67 | J56: =IF((J55<=$D$18),$D$18,J55) -> 19.67 | L56: =IF((L55<=$D$18),$D$18,L55) -> 19.67 | N56: =IF((N55<=$D$18),$D$18,N55) -> 19.67 | P56: =IF((P55<=$D$18),$D$18,P55) -> 19.67 | R56: =IF((R55<=$D$18),$D$18,R55) -> 19.67 | T56: =IF((T55<=$D$18),$D$18,T55) -> 19.67 | V56: =IF((V55<=$D$18),$D$18,V55) -> 19.67 | X56: =IF((X55<=$D$18),$D$18,X55) -> 19.67 | Z56: =IF((Z55<=$D$18),$D$18,Z55) -> 19.67 | AB56: =IF((AB55<=$D$18),$D$18,AB55) -> 23.103 | AD56: =IF((AD55<=$D$18),$D$18,AD55) -> 26.536 | AF56: =IF((AF55<=$D$18),$D$18,AF55) -> 29.969 | AH56: =IF((AH55<=$D$18),$D$18,AH55) -> 33.402 | AJ56: =IF((AJ55<=$D$18),$D$18,AJ55) -> 36.835 | AL56: =IF((AL55<=$D$18),$D$18,AL55) -> 40.268 | AN56: =IF((AN55<=$D$18),$D$18,AN55) -> 43.701 | AP56: =IF((AP55<=$D$18),$D$18,AP55) -> 47.134 | AR56: =IF((AR55<=$D$18),$D$18,AR55) -> 50.567 | AT56: =IF((AT55<=$D$18),$D$18,AT55) -> 54 | AV56: =IF((AV55<=$D$18),$D$18,AV55) -> 57.433 | AX56: =IF((AX55<=$D$18),$D$18,AX55) -> 60.866 | AZ56: =IF((AZ55<=$D$18),$D$18,AZ55) -> 64.299 | BB56: =IF((BB55<=$D$18),$D$18,BB55) -> 67.732 | BD56: =IF((BD55<=$D$18),$D$18,BD55) -> 71.165 | BF56: =IF((BF55<=$D$18),$D$18,BF55) -> 75.215 | BH56: =IF((BH55<=$D$18),$D$18,BH55) -> 79.265 | BJ56: =IF((BJ55<=$D$18),$D$18,BJ55) -> 83.315 | BL56: =IF((BL55<=$D$18),$D$18,BL55) -> 87.365 | BN56: =IF((BN55<=$D$18),$D$18,BN55) -> 91.415 | BP56: =IF((BP55<=$D$18),$D$18,BP55) -> 95.465 | BR56: =IF((BR55<=$D$18),$D$18,BR55) -> 99.515 | BT56: =IF((BT55<=$D$18),$D$18,BT55) -> 103.565 | BV56: =IF((BV55<=$D$18),$D$18,BV55) -> 107.615 | BX56: =IF((BX55<=$D$18),$D$18,BX55) -> 111.665 | BZ56: =IF((BZ55<=$D$18),$D$18,BZ55) -> 115.715 | CB56: =IF((CB55<=$D$18),$D$18,CB55) -> 119.765 | CD56: =IF((CD55<=$D$18),$D$18,CD55) -> 123.815 | CF56: =IF((CF55<=$D$18),$D$18,CF55) -> 127.865 | CH56: =IF((CH55<=$D$18),$D$18,CH55) -> 131.915 | CJ56: =IF((CJ55<=$D$18),$D$18,CJ55) -> 135.965 | CL56: =IF((CL55<=$D$18),$D$18,CL55) -> 140.015 | CN56: =IF((CN55<=$D$18),$D$18,CN55) -> 144.065 | CP56: =IF((CP55<=$D$18),$D$18,CP55) -> 148.115 | CR56: =IF((CR55<=$D$18),$D$18,CR55) -> 152.165 | CT56: =IF((CT55<=$D$18),$D$18,CT55) -> 156.215 | CV56: =IF((CV55<=$D$18),$D$18,CV55) -> 160.265 | CX56: =IF((CX55<=$D$18),$D$18,CX55) -> 164.315 | CZ56: =IF((CZ55<=$D$18),$D$18,CZ55) -> 168.365 | DB56: =IF((DB55<=$D$18),$D$18,DB55) -> 172.415 | DD56: =D49*113 -> 3260.05
B57: FATURAMENTO DE ÁGUA | F57: =F56 -> 19.67 | H57: =H56 -> 19.67 | J57: =J56 -> 19.67 | L57: =L56 -> 19.67 | N57: =N56 -> 19.67 | P57: =P56 -> 19.67 | R57: =R56 -> 19.67 | T57: =T56 -> 19.67 | V57: =V56 -> 19.67 | X57: =X56 -> 19.67 | Z57: =Z56 -> 19.67 | AB57: =AB56 -> 23.103 | AD57: =AD56 -> 26.536 | AF57: =AF56 -> 29.969 | AH57: =AH56 -> 33.402 | AJ57: =AJ56 -> 36.835 | AL57: =AL56 -> 40.268 | AN57: =AN56 -> 43.701 | AP57: =AP56 -> 47.134 | AR57: =AR56 -> 50.567 | AT57: =AT56 -> 54 | AV57: =AV56 -> 57.433 | AX57: =AX56 -> 60.866 | AZ57: =AZ56 -> 64.299 | BB57: =BB56 -> 67.732 | BD57: =BD56 -> 71.165 | BF57: =BF56 -> 75.215 | BH57: =BH56 -> 79.265 | BJ57: =BJ56 -> 83.315 | BL57: =BL56 -> 87.365 | BN57: =BN56 -> 91.415 | BP57: =BP56 -> 95.465 | BR57: =BR56 -> 99.515 | BT57: =BT56 -> 103.565 | BV57: =BV56 -> 107.615 | BX57: =BX56 -> 111.665 | BZ57: =BZ56 -> 115.715 | CB57: =CB56 -> 119.765 | CD57: =CD56 -> 123.815 | CF57: =CF56 -> 127.865 | CH57: =CH56 -> 131.915 | CJ57: =CJ56 -> 135.965 | CL57: =CL56 -> 140.015 | CN57: =CN56 -> 144.065 | CP57: =CP56 -> 148.115 | CR57: =CR56 -> 152.165 | CT57: =CT56 -> 156.215 | CV57: =CV56 -> 160.265 | CX57: =CX56 -> 164.315 | CZ57: =CZ56 -> 168.365 | DB57: =DB56 -> 172.415 | DD57: =DD55+DD56 -> 
B58: FATURAMENTO ESGOTO 100% | F58: =F57 -> 19.67 | H58: =H57 -> 19.67 | J58: =J57 -> 19.67 | L58: =L57 -> 19.67 | N58: =N57 -> 19.67 | P58: =P57 -> 19.67 | R58: =R57 -> 19.67 | T58: =T57 -> 19.67 | V58: 19.67 | X58: 19.67 | Z58: 19.67 | AB58: 23.103 | AD58: 26.536 | AF58: 29.969 | AH58: 33.402 | AJ58: 36.835 | AL58: 40.268 | AN58: 43.701 | AP58: 47.134 | AR58: 50.567 | AT58: 54 | AV58: 57.433 | AX58: 60.866 | AZ58: 64.299 | BB58: 67.732 | BD58: 71.165 | BF58: 75.215 | BH58: 79.265 | BJ58: 83.315 | BL58: 87.365 | BN58: 91.415 | BP58: 95.465 | BR58: 99.515 | BT58: 103.565 | BV58: 107.615 | BX58: 111.665 | BZ58: 115.715 | CB58: 119.765 | CD58: 123.815 | CF58: 127.865 | CH58: 131.915 | CJ58: 135.965 | CL58: 140.015 | CN58: 144.065 | CP58: 148.115 | CR58: 152.165 | CT58: 156.215 | CV58: 160.265 | CX58: 164.315 | CZ58: 168.365 | DB58: 172.415 | DD58: =DD57 ->  | DF58: Diferença de R$ 735,86 | DI58: =DD59-DD13 -> 
B59: VALOR TOTAL DA FATURA | F59: =F57+F58 -> 39.34 | H59: =H57+H58 -> 39.34 | J59: =J57+J58 -> 39.34 | L59: =L57+L58 -> 39.34 | N59: =N57+N58 -> 39.34 | P59: =P57+P58 -> 39.34 | R59: =R57+R58 -> 39.34 | T59: =T57+T58 -> 39.34 | V59: =V57+V58 -> 39.34 | X59: =X57+X58 -> 39.34 | Z59: =Z57+Z58 -> 39.34 | AB59: =AB57+AB58 -> 46.206 | AD59: =AD57+AD58 -> 53.072 | AF59: =AF57+AF58 -> 59.938 | AH59: =AH57+AH58 -> 66.804 | AJ59: =AJ57+AJ58 -> 73.67 | AL59: =AL57+AL58 -> 80.536 | AN59: =AN57+AN58 -> 87.402 | AP59: =AP57+AP58 -> 94.268 | AR59: =AR57+AR58 -> 101.134 | AT59: =AT57+AT58 -> 108 | AV59: =AV57+AV58 -> 114.866 | AX59: =AX57+AX58 -> 121.732 | AZ59: =AZ57+AZ58 -> 128.598 | BB59: =BB57+BB58 -> 135.464 | BD59: =BD57+BD58 -> 142.33 | BF59: =BF57+BF58 -> 150.43 | BH59: =BH57+BH58 -> 158.53 | BJ59: =BJ57+BJ58 -> 166.63 | BL59: =BL57+BL58 -> 174.73 | BN59: =BN57+BN58 -> 182.83 | BP59: =BP57+BP58 -> 190.93 | BR59: =BR57+BR58 -> 199.03 | BT59: =BT57+BT58 -> 207.13 | BV59: =BV57+BV58 -> 215.23 | BX59: =BX57+BX58 -> 223.33 | BZ59: =BZ57+BZ58 -> 231.43 | CB59: =CB57+CB58 -> 239.53 | CD59: =CD57+CD58 -> 247.63 | CF59: =CF57+CF58 -> 255.73 | CH59: =CH57+CH58 -> 263.83 | CJ59: =CJ57+CJ58 -> 271.93 | CL59: =CL57+CL58 -> 280.03 | CN59: =CN57+CN58 -> 288.13 | CP59: =CP57+CP58 -> 296.23 | CR59: =CR57+CR58 -> 304.33 | CT59: =CT57+CT58 -> 312.43 | CV59: =CV57+CV58 -> 320.53 | CX59: =CX57+CX58 -> 328.63 | CZ59: =CZ57+CZ58 -> 336.73 | DB59: =DB57+DB58 -> 344.83 | DD59: =DD57+DD58 -> 

Sheet CALCULADORA
B2: CALCULADORA EMASA
B3: DIGITE O VOLUME CONSUMIDO EM m³
B4: 0
B5: DIGITE O NÚMERO DE UNIDADES CONSUMIDORAS
B6: 0
B9: FATURA APÓS DECISÃO JUDICIAL (R$) | D9: 35.41
B10: 0
B11: Jurisprudência: 1 hidrômetro = 01 economia
B12: FATURA COM ESTRUTURA PROPOSTA PELA ARESC (R$) | D12: 35.41
B13: 0
B14: Tarifa Fixa (TFDI) + Volume medido
D16: 59.11
